{"text_format":"2","workbook":"xlsx","n_sheets":8,"sheets":["Таблица 1_КСГ по КС ","Таблица 2_КСГ по ДС","Таблица 3_k уровня-подуровн","Таблица 4_КСЛП","Таблица 4.1","Таблица 4.2","Таблица 4.3","Таблица 4.4"],"not_rendered":{"charts":0,"images":0,"macros":0,"external_links":0,"defined_names":19,"comments":0,"pivot_tables":0},"unopened":[],"bounds":{"document_bytes":16777216,"sheet_cells":100000,"run_cost":"one","rows_first":2000,"rows_last":500,"rows_between":2000,"halvings":0,"cell_chars":16384,"cell_head_chars":4096},"cells_cut":0,"cells_raw":0,"read":"whole","date_system":"1900"}

{"sheet":"Таблица 1_КСГ по КС ","index":0,"n_rows":448,"n_cols":13,"rows_kept":448,"cut":false,"hidden":false,"merged":[[441,0,441,12],[444,0,444,12],[9,8,10,8],[9,12,10,12],[447,0,447,12],[5,0,5,12],[7,0,7,5],[9,6,10,6],[9,9,10,9],[9,10,10,10],[9,11,10,11],[9,0,11,0],[9,5,11,5],[9,4,11,4],[9,3,11,3],[9,2,11,2],[9,1,11,1],[9,7,10,7]]}
[{"$nulls":12},"Приложение № 8"]
[{"$nulls":12},"к Дополнительному соглашению № 4"]
[{"$nulls":12}," от \"19\" июля 2023 года"]
[]
[]
[" Данные для расчёта тарифов на оплату медицинской помощи, оказанной в стационарных условиях по КСГ "]
[]
["БАЗОВАЯ СТАВКА ФИНАНСИРОВАНИЯ, ВКЛЮЧЕННАЯ В КПГ/КСГ (БС)  - ",{"$nulls":5},30781.58,"рублей",null,{"$f":"G8*3.536","v":108843.66688}]
[{"$nulls":12},"Таблица 1"]
["№ п/п","Код профиля","Код профиля (V002)","Профиль","Код КСГ в системе ОМС ","Наименование КСГ","Коэффициент относительной затратоёмкости КСГ ","Коэффициент дифференциации ","Доля з/платы и прочих расходов*","Коэффициент специфики оказания медицинской помощи ","Коэффициент уровня оказания стационарной медицинской помощи ","Коэффициент подуровня оказания стационарной медицинской помощи   для организаций i уровня ","Коэффициент сложности лечения пациента"]
[]
[{"$nulls":6},"КЗксг","КД"," Дзп","КСксг","  КУСмо       ","КУСмоi","КСЛП"]
[1,2,3,4,5,6,7,8,9,10,11,12,13]
[1,1,3,"Акушерское дело","st01.001","Беременность без патологии, дородовая госпитализация в отделение сестринского ухода",0.5,3.536,null,1,"не применяется","не применяется","Таблица 4"]
[2,2,136,"Акушерство и гинекология","st02.001","Осложнения, связанные с беременностью",0.93,3.536,null,1.4,"Таблица 3","Таблица 3","Таблица 4"]
[3,2,184,"Акушерство и гинекология","st02.002","Беременность, закончившаяся абортивным исходом",0.28000000000000003,3.536,null,1.4,"не применяется","не применяется","Таблица 4"]
[4,2,136,"Акушерство и гинекология","st02.003","Родоразрешение",0.98,3.536,null,1.4,"Таблица 3","Таблица 3","Таблица 4"]
[5,2,136,"Акушерство и гинекология","st02.004","Кесарево сечение",1.01,3.536,null,1.4,"Таблица 3","Таблица 3","Таблица 4"]
[6,2,136,"Акушерство и гинекология","st02.005","Осложнения послеродового периода",0.74,3.536,null,1.4,"Таблица 3","Таблица 3","Таблица 4"]
[7,2,136,"Акушерство и гинекология","st02.006","Послеродовой сепсис",3.21,3.536,null,1.4,"не применяется","не применяется","Таблица 4"]
[8,2,136,"Акушерство и гинекология","st02.007","Воспалительные болезни женских половых органов",0.71,3.536,null,1.4,"Таблица 3","Таблица 3","Таблица 4"]
[9,2,136,"Акушерство и гинекология","st02.008","Доброкачественные новообразования, новообразования in situ, неопределенного и неизвестного характера женских половых органов",0.89,3.536,null,1.4,"Таблица 3","Таблица 3","Таблица 4"]
[10,2,136,"Акушерство и гинекология","st02.009","Другие болезни, врожденные аномалии, повреждения женских половых органов",0.46,3.536,null,1.4,"Таблица 3","Таблица 3","Таблица 4"]
[11,2,136,"Акушерство и гинекология","st02.010","Операции на женских половых органах (уровень 1)",0.39,3.536,null,1.4,"Таблица 3","Таблица 3","Таблица 4"]
[12,2,136,"Акушерство и гинекология","st02.011","Операции на женских половых органах (уровень 2)",0.57999999999999996,3.536,null,1.4,"Таблица 3","Таблица 3","Таблица 4"]
[13,2,136,"Акушерство и гинекология","st02.012","Операции на женских половых органах (уровень 3)",1.17,3.536,null,1.4,"не применяется","не применяется","Таблица 4"]
[14,2,136,"Акушерство и гинекология","st02.013","Операции на женских половых органах (уровень 4)",2.2000000000000002,3.536,null,1.4,"Таблица 3","Таблица 3","Таблица 4"]
[15,null,136,"Акушерство и гинекология","st02.014","Слинговые операции при недержании мочи",3.85,3.536,0.30449999999999999,1.4,"Таблица 3","Таблица 3","Таблица 4"]
[16,3,4,"Аллергология и иммунология","st03.001","Нарушения с вовлечением иммунного механизма",4.5199999999999996,3.536,null,1,"Таблица 3","Таблица 3","Таблица 4"]
[17,3,4,"Аллергология и иммунология","st03.002","Ангионевротический отек, анафилактический шок",0.27,3.536,null,1,"не применяется","не применяется","Таблица 4"]
[18,4,11,"Гастроэнтерология","st04.001","Язва желудка и двенадцатиперстной кишки",0.89,3.536,null,1,"не применяется","не применяется","Таблица 4"]
[19,4,11,"Гастроэнтерология","st04.002","Воспалительные заболевания кишечника",2.0099999999999998,3.536,null,1,"Таблица 3","Таблица 3","Таблица 4"]
[20,4,11,"Гастроэнтерология","st04.003","Болезни печени, невирусные (уровень 1)",0.86,3.536,null,1,"Таблица 3","Таблица 3","Таблица 4"]
[21,4,11,"Гастроэнтерология","st04.004","Болезни печени, невирусные (уровень 2)",1.21,3.536,null,1,"Таблица 3","Таблица 3","Таблица 4"]
[22,4,11,"Гастроэнтерология","st04.005","Болезни поджелудочной железы",0.87,3.536,null,1,"Таблица 3","Таблица 3","Таблица 4"]
[23,4,11,"Гастроэнтерология","st04.006","Панкреатит с синдромом органной дисфункции",4.1900000000000004,3.536,null,1,"Таблица 3","Таблица 3","Таблица 4"]
[24,5,12,"Гематология","st05.001","Анемии (уровень 1)",0.94,3.536,null,1,"Таблица 3","Таблица 3","Таблица 4"]
[25,5,12,"Гематология","st05.002","Анемии (уровень 2)",5.32,3.536,null,1,"Таблица 3","Таблица 3","Таблица 4"]
[26,5,12,"Гематология","st05.003","Нарушения свертываемости крови",4.5,3.536,null,1,"Таблица 3","Таблица 3","Таблица 4"]
[27,5,12,"Гематология","st05.004","Другие болезни крови и кроветворных органов (уровень 1)",1.0900000000000001,3.536,null,1,"Таблица 3","Таблица 3","Таблица 4"]
[28,5,12,"Гематология","st05.005","Другие болезни крови и кроветворных органов (уровень 2)",4.51,3.536,null,1,"Таблица 3","Таблица 3","Таблица 4"]
[29,5,12,"Гематология","st05.008","Лекарственная терапия при доброкачественных заболеваниях крови и пузырном заносе",2.0499999999999998,3.536,null,1,"Таблица 3","Таблица 3","Таблица 4"]
[30,6,16,"Дерматовенерология","st06.004","Лечение дерматозов с применением наружной терапии",0.32,3.536,0.97470000000000001,1,"Таблица 3","Таблица 3","Таблица 4"]
[31,6,16,"Дерматовенерология","st06.005","Лечение дерматозов с применением наружной терапии, физиотерапии, плазмафереза",1.39,3.536,0.9849,1,"Таблица 3","Таблица 3","Таблица 4"]
[32,6,16,"Дерматовенерология","st06.006","Лечение дерматозов с применением наружной и системной терапии",2.1,3.536,0.99039999999999995,1,"Таблица 3","Таблица 3","Таблица 4"]
[33,6,16,"Дерматовенерология","st06.007","Лечение дерматозов с применением наружной терапии и фототерапии",2.86,3.536,0.98,1,"Таблица 3","Таблица 3","Таблица 4"]
[34,7,17,"Детская кардиология","st07.001","Врожденные аномалии сердечно-сосудистой системы, дети",1.84,3.536,null,1,"Таблица 3","Таблица 3","Таблица 4"]
[35,8,"18","Детская онкология","st08.001","Лекарственная терапия при злокачественных новообразованиях других локализаций (кроме лимфоидной и кроветворной тканей), дети",4.37,3.536,null,1,"Таблица 3","Таблица 3","Таблица 4"]
[36,8,"18","Детская онкология","st08.002","Лекарственная терапия при остром лейкозе, дети",7.82,3.536,null,1,"Таблица 3","Таблица 3","Таблица 4"]
[37,8,18,"Детская онкология","st08.003","Лекарственная терапия при других злокачественных новообразованиях лимфоидной и кроветворной тканей, дети",5.68,3.536,null,1,"Таблица 3","Таблица 3","Таблица 4"]
[38,9,"19","Детская урология-андрология","st09.001","Операции на мужских половых органах, дети (уровень 1)",0.97,3.536,null,1.4,"Таблица 3","Таблица 3","Таблица 4"]
[39,9,"19","Детская урология-андрология","st09.002","Операции на мужских половых органах, дети (уровень 2)",1.1100000000000001,3.536,null,1.4,"Таблица 3","Таблица 3","Таблица 4"]
[40,9,"19","Детская урология-андрология","st09.003","Операции на мужских половых органах, дети (уровень 3)",1.97,3.536,null,1.4,"не применяется","не применяется","Таблица 4"]
[41,9,"19","Детская урология-андрология","st09.004","Операции на мужских половых органах, дети (уровень 4)",2.78,3.536,null,1.4,"не применяется","не применяется","Таблица 4"]
[42,9,"19","Детская урология-андрология","st09.005","Операции на почке и мочевыделительной системе, дети (уровень 1)",1.1499999999999999,3.536,null,1.4,"Таблица 3","Таблица 3","Таблица 4"]
[43,9,"19","Детская урология-андрология","st09.006","Операции на почке и мочевыделительной системе, дети (уровень 2)",1.22,3.536,null,1.4,"Таблица 3","Таблица 3","Таблица 4"]
[44,9,"19","Детская урология-андрология","st09.007","Операции на почке и мочевыделительной системе, дети (уровень 3)",1.78,3.536,null,1.4,"Таблица 3","Таблица 3","Таблица 4"]
[45,9,"19","Детская урология-андрология","st09.008","Операции на почке и мочевыделительной системе, дети (уровень 4)",2.23,3.536,null,1.4,"не применяется","не применяется","Таблица 4"]
[46,9,"19","Детская урология-андрология","st09.009","Операции на почке и мочевыделительной системе, дети (уровень 5)",2.36,3.536,null,1.4,"не применяется","не применяется","Таблица 4"]
[47,9,19,"Детская урология-андрология","st09.010","Операции на почке и мочевыделительной системе, дети (уровень 6)",4.28,3.536,null,1.4,"не применяется","не применяется","Таблица 4"]
[48,10,20,"Детская хирургия","st10.001","Детская хирургия (уровень 1)",2.95,3.536,null,1.4,"Таблица 3","Таблица 3","Таблица 4"]
[49,10,20,"Детская хирургия","st10.002","Детская хирургия (уровень 2)",5.33,3.536,null,1.4,"Таблица 3","Таблица 3","Таблица 4"]
[50,10,20,"Детская хирургия","st10.003","Аппендэктомия, дети (уровень 1)",0.77,3.536,null,1.4,"не применяется","не применяется","Таблица 4"]
[51,10,20,"Детская хирургия","st10.004","Аппендэктомия, дети (уровень 2)",0.97,3.536,null,1.4,"Таблица 3","Таблица 3","Таблица 4"]
[52,10,20,"Детская хирургия","st10.005","Операции по поводу грыж, дети (уровень 1)",0.88,3.536,null,1.4,"не применяется","не применяется","Таблица 4"]
[53,10,20,"Детская хирургия","st10.006","Операции по поводу грыж, дети (уровень 2)",1.05,3.536,null,1.4,"Таблица 3","Таблица 3","Таблица 4"]
[54,10,20,"Детская хирургия","st10.007","Операции по поводу грыж, дети (уровень 3)",1.25,3.536,null,1.4,"Таблица 3","Таблица 3","Таблица 4"]
[55,11,21,"Детская эндокринология","st11.001","Сахарный диабет, дети",1.51,3.536,null,1,"Таблица 3","Таблица 3","Таблица 4"]
[56,11,21,"Детская эндокринология","st11.002","Заболевания гипофиза, дети",2.2599999999999998,3.536,null,1,"Таблица 3","Таблица 3","Таблица 4"]
[57,11,21,"Детская эндокринология","st11.003","Другие болезни эндокринной системы, дети (уровень 1)",1.38,3.536,null,1,"Таблица 3","Таблица 3","Таблица 4"]
[58,11,21,"Детская эндокринология","st11.004","Другие болезни эндокринной системы, дети (уровень 2)",2.82,3.536,null,1,"Таблица 3","Таблица 3","Таблица 4"]
[59,12,28,"Инфекционные болезни","st12.001","Кишечные инфекции, взрослые",0.57999999999999996,3.536,null,1,"Таблица 3","Таблица 3","Таблица 4"]
[60,12,28,"Инфекционные болезни","st12.002","Кишечные инфекции, дети",0.62,3.536,null,1,"Таблица 3","Таблица 3","Таблица 4"]
[61,12,28,"Инфекционные болезни","st12.003","Вирусный гепатит острый",1.4,3.536,null,1,"Таблица 3","Таблица 3","Таблица 4"]
[62,12,28,"Инфекционные болезни","st12.004","Вирусный гепатит хронический",1.27,3.536,null,1,"Таблица 3","Таблица 3","Таблица 4"]
[63,12,28,"Инфекционные болезни","st12.005","Сепсис, взрослые",3.12,3.536,null,1,"Таблица 3","Таблица 3","Таблица 4"]
[64,12,28,"Инфекционные болезни","st12.006","Сепсис, дети",4.51,3.536,null,1,"Таблица 3","Таблица 3","Таблица 4"]
[65,12,28,"Инфекционные болезни","st12.007","Сепсис с синдромом органной дисфункции",7.2,3.536,null,1,"Таблица 3","Таблица 3","Таблица 4"]
[66,12,28,"Инфекционные болезни","st12.008","Другие инфекционные и паразитарные болезни, взрослые",1.18,3.536,null,1,"Таблица 3","Таблица 3","Таблица 4"]
[67,12,28,"Инфекционные болезни","st12.009","Другие инфекционные и паразитарные болезни, дети",0.98,3.536,null,1,"Таблица 3","Таблица 3","Таблица 4"]
[68,12,28,"Инфекционные болезни","st12.010","Респираторные инфекции верхних дыхательных путей с осложнениями, взрослые",0.35,3.536,null,1,"Таблица 3","Таблица 3","Таблица 4"]
[69,12,28,"Инфекционные болезни","st12.011","Респираторные инфекции верхних дыхательных путей, дети",0.5,3.536,null,1,"Таблица 3","Таблица 3","Таблица 4"]
[70,12,28,"Инфекционные болезни","st12.012","Грипп, вирус гриппа идентифицирован",1,3.536,null,1,"Таблица 3","Таблица 3","Таблица 4"]
[71,12,28,"Инфекционные болезни","st12.013","Грипп и пневмония с синдромом органной дисфункции",4.4000000000000004,3.536,null,1,"Таблица 3","Таблица 3","Таблица 4"]
[72,12,28,"Инфекционные болезни","st12.014","Клещевой энцефалит",2.2999999999999998,3.536,null,1,"Таблица 3","Таблица 3","Таблица 4"]
[73,12,28,"Инфекционные болезни","st12.015","Коронавирусная инфекция COVID-19 (уровень 1)",1.89,3.536,0.91120000000000001,1,"Таблица 3","Таблица 3","Таблица 4"]
[74,12,28,"Инфекционные болезни","st12.016","Коронавирусная инфекция COVID-19 (уровень 2)",4.08,3.536,0.61299999999999999,1,"Таблица 3","Таблица 3","Таблица 4"]
[75,12,28,"Инфекционные болезни","st12.017","Коронавирусная инфекция COVID-19 (уровень 3)",6.17,3.536,0.63239999999999996,1,"Таблица 3","Таблица 3","Таблица 4"]
[76,12,28,"Инфекционные болезни","st12.018","Коронавирусная инфекция COVID-19 (уровень 4)",12.07,3.536,0.77629999999999999,1,"Таблица 3","Таблица 3","Таблица 4"]
[77,12,28,"Инфекционные болезни","st12.019","Коронавирусная инфекция COVID-19 (долечивание)",2.0699999999999998,3.536,null,1,"Таблица 3","Таблица 3","Таблица 4"]
[78,13,29,"Кардиология","st13.001","Нестабильная стенокардия, инфаркт миокарда, легочная эмболия (уровень 1)",1.42,3.536,null,1,"Таблица 3","Таблица 3","Таблица 4"]
[79,13,29,"Кардиология","st13.002","Нестабильная стенокардия, инфаркт миокарда, легочная эмболия (уровень 2)",2.81,3.536,null,1,"Таблица 3","Таблица 3","Таблица 4"]
[80,13,29,"Кардиология","st13.004","Нарушения ритма и проводимости (уровень 1)",1.1200000000000001,3.536,null,1,"Таблица 3","Таблица 3","Таблица 4"]
[81,13,29,"Кардиология","st13.005","Нарушения ритма и проводимости (уровень 2)",2.0099999999999998,3.536,null,1,"Таблица 3","Таблица 3","Таблица 4"]
[82,13,29,"Кардиология","st13.006","Эндокардит, миокардит, перикардит, кардиомиопатии (уровень 1)",1.42,3.536,null,1,"Таблица 3","Таблица 3","Таблица 4"]
[83,13,29,"Кардиология","st13.007","Эндокардит, миокардит, перикардит, кардиомиопатии (уровень 2)",2.38,3.536,null,1,"Таблица 3","Таблица 3","Таблица 4"]
[84,13,29,"Кардиология","st13.008","Инфаркт миокарда, легочная эмболия, лечение с применением тромболитической терапии (уровень 1)",1.61,3.536,null,1,"Таблица 3","Таблица 3","Таблица 4"]
[85,13,29,"Кардиология","st13.009","Инфаркт миокарда, легочная эмболия, лечение с применением тромболитической терапии (уровень 2)",2.99,3.536,null,1,"Таблица 3","Таблица 3","Таблица 4"]
[86,13,29,"Кардиология","st13.010","Инфаркт миокарда, легочная эмболия, лечение с применением тромболитической терапии (уровень 3)",3.54,3.536,null,1,"Таблица 3","Таблица 3","Таблица 4"]
[87,14,30,"Колопроктология","st14.001","Операции на кишечнике и анальной области (уровень 1)",0.84,3.536,null,1,"не применяется","не применяется","Таблица 4"]
[88,14,30,"Колопроктология","st14.002","Операции на кишечнике и анальной области (уровень 2)",1.74,3.536,null,1,"Таблица 3","Таблица 3","Таблица 4"]
[89,14,30,"Колопроктология","st14.003","Операции на кишечнике и анальной области (уровень 3)",2.4900000000000002,3.536,null,1,"Таблица 3","Таблица 3","Таблица 4"]
[90,15,53,"Неврология","st15.001","Воспалительные заболевания ЦНС, взрослые",0.98,3.536,null,1,"Таблица 3","Таблица 3","Таблица 4"]
[91,15,53,"Неврология","st15.002","Воспалительные заболевания ЦНС, дети",1.55,3.536,null,1,"Таблица 3","Таблица 3","Таблица 4"]
[92,15,53,"Неврология","st15.003","Дегенеративные болезни нервной системы",0.84,3.536,null,1,"Таблица 3","Таблица 3","Таблица 4"]
[93,15,53,"Неврология","st15.004","Демиелинизирующие болезни нервной системы",1.33,3.536,null,1,"Таблица 3","Таблица 3","Таблица 4"]
[94,15,53,"Неврология","st15.005","Эпилепсия, судороги (уровень 1)",0.96,3.536,null,1,"не применяется","не применяется","Таблица 4"]
[95,15,53,"Неврология","st15.007","Расстройства периферической нервной системы",1.02,3.536,null,1,"Таблица 3","Таблица 3","Таблица 4"]
[96,15,53,"Неврология","st15.008","Неврологические заболевания, лечение с применением ботулотоксина (уровень 1)",1.43,3.536,null,1,"не применяется","не применяется","Таблица 4"]
[97,15,53,"Неврология","st15.009","Неврологические заболевания, лечение с применением ботулотоксина (уровень 2)",2.11,3.536,null,1,"не применяется","не применяется","Таблица 4"]
[98,15,53,"Неврология","st15.010","Другие нарушения нервной системы (уровень 1)",0.74,3.536,null,1,"Таблица 3","Таблица 3","Таблица 4"]
[99,15,53,"Неврология","st15.011","Другие нарушения нервной системы (уровень 2)",0.99,3.536,null,1,"Таблица 3","Таблица 3","Таблица 4"]
[100,15,53,"Неврология","st15.012","Транзиторные ишемические приступы, сосудистые мозговые синдромы",1.1499999999999999,3.536,null,1,"Таблица 3","Таблица 3","Таблица 4"]
[101,15,53,"Неврология","st15.013","Кровоизлияние в мозг",2.82,3.536,null,1,"Таблица 3","Таблица 3","Таблица 4"]
[102,15,53,"Неврология","st15.014","Инфаркт мозга (уровень 1)",2.52,3.536,null,1,"Таблица 3","Таблица 3","Таблица 4"]
[103,15,53,"Неврология","st15.015","Инфаркт мозга (уровень 2)",3.12,3.536,null,1,"Таблица 3","Таблица 3","Таблица 4"]
[104,15,53,"Неврология","st15.016","Инфаркт мозга (уровень 3)",4.51,3.536,null,1,"Таблица 3","Таблица 3","Таблица 4"]
[105,15,53,"Неврология","st15.017","Другие цереброваскулярные болезни",0.82,3.536,null,1,"Таблица 3","Таблица 3","Таблица 4"]
[106,15,53,"Неврология","st15.018","Эпилепсия, судороги (уровень 2)",2.2999999999999998,3.536,null,1,"Таблица 3","Таблица 3","Таблица 4"]
[107,15,53,"Неврология","st15.019","Эпилепсия (уровень 3)",3.16,3.536,null,1,"Таблица 3","Таблица 3","Таблица 4"]
[108,15,53,"Неврология","st15.020","Эпилепсия (уровень 4)",4.84,3.536,null,1,"Таблица 3","Таблица 3","Таблица 4"]
[109,16,54,"Нейрохирургия","st16.001","Паралитические синдромы, травма спинного мозга (уровень 1)",0.98,3.536,null,1,"Таблица 3","Таблица 3","Таблица 4"]
[110,16,54,"Нейрохирургия","st16.002","Паралитические синдромы, травма спинного мозга (уровень 2)",1.49,3.536,null,1,"Таблица 3","Таблица 3","Таблица 4"]
[111,16,54,"Нейрохирургия","st16.003","Дорсопатии, спондилопатии, остеопатии",0.68,3.536,null,1,"не применяется","не применяется","Таблица 4"]
[112,16,54,"Нейрохирургия","st16.004","Травмы позвоночника",1.01,3.536,null,1,"Таблица 3","Таблица 3","Таблица 4"]
[113,16,54,"Нейрохирургия","st16.005","Сотрясение головного мозга",0.4,3.536,null,1,"не применяется","не применяется","Таблица 4"]
[114,16,54,"Нейрохирургия","st16.006","Переломы черепа, внутричерепная травма",1.54,3.536,null,1,"Таблица 3","Таблица 3","Таблица 4"]
[115,16,54,"Нейрохирургия","st16.007","Операции на центральной нервной системе и головном мозге (уровень 1)",4.13,3.536,null,1,"Таблица 3","Таблица 3","Таблица 4"]
[116,16,54,"Нейрохирургия","st16.008","Операции на центральной нервной системе и головном мозге (уровень 2)",5.82,3.536,null,1,"Таблица 3","Таблица 3","Таблица 4"]
[117,16,54,"Нейрохирургия","st16.009","Операции на периферической нервной системе (уровень 1)",1.41,3.536,null,1,"Таблица 3","Таблица 3","Таблица 4"]
[118,16,54,"Нейрохирургия","st16.010","Операции на периферической нервной системе (уровень 2)",2.19,3.536,null,1,"не применяется","не применяется","Таблица 4"]
[119,16,54,"Нейрохирургия","st16.011","Операции на периферической нервной системе (уровень 3)",2.42,3.536,null,1,"не применяется","не применяется","Таблица 4"]
[120,16,54,"Нейрохирургия","st16.012","Доброкачественные новообразования нервной системы",1.02,3.536,null,1,"Таблица 3","Таблица 3","Таблица 4"]
[121,17,55,"Неонатология","st17.001","Малая масса тела при рождении, недоношенность",4.21,3.536,null,1.4,"Таблица 3","Таблица 3","Таблица 4"]
[122,17,55,"Неонатология","st17.002","Крайне малая масса тела при рождении, крайняя незрелость",15.63,3.536,null,1.4,"Таблица 3","Таблица 3","Таблица 4"]
[123,17,55,"Неонатология","st17.003","Лечение новорожденных с тяжелой патологией с применением аппаратных методов поддержки или замещения витальных функций",7.4,3.536,null,1.4,"Таблица 3","Таблица 3","Таблица 4"]
[124,17,55,"Неонатология","st17.004","Геморрагические и гемолитические нарушения у новорожденных",1.92,3.536,null,1.4,"Таблица 3","Таблица 3","Таблица 4"]
[125,17,55,"Неонатология","st17.005","Другие нарушения, возникшие в перинатальном периоде (уровень 1)",1.39,3.536,null,1.4,"Таблица 3","Таблица 3","Таблица 4"]
[126,17,55,"Неонатология","st17.006","Другие нарушения, возникшие в перинатальном периоде (уровень 2)",1.89,3.536,null,1.4,"Таблица 3","Таблица 3","Таблица 4"]
[127,17,55,"Неонатология","st17.007","Другие нарушения, возникшие в перинатальном периоде (уровень 3)",2.56,3.536,null,1.4,"Таблица 3","Таблица 3","Таблица 4"]
[128,18,56,"Нефрология (без диализа)","st18.001","Почечная недостаточность",1.66,3.536,null,1,"Таблица 3","Таблица 3","Таблица 4"]
[129,18,56,"Нефрология (без диализа)","st18.002","Формирование, имплантация, реконструкция, удаление, смена доступа для диализа",1.82,3.536,null,1,"Таблица 3","Таблица 3","Таблица 4"]
[130,18,56,"Нефрология (без диализа)","st18.003","Гломерулярные болезни",1.71,3.536,null,1,"Таблица 3","Таблица 3","Таблица 4"]
[131,19,60,"Онкология","st19.001","Операции на женских половых органах при злокачественных новообразованиях (уровень 1)",2.41,3.536,null,1,"Таблица 3","Таблица 3","Таблица 4"]
[132,19,60,"Онкология","st19.002","Операции на женских половых органах при злокачественных новообразованиях (уровень 2)",4.0199999999999996,3.536,null,1,"Таблица 3","Таблица 3","Таблица 4"]
[133,19,60,"Онкология","st19.003","Операции на женских половых органах при злокачественных новообразованиях (уровень 3)",4.8899999999999997,3.536,null,1,"Таблица 3","Таблица 3","Таблица 4"]
[134,19,60,"Онкология","st19.004","Операции на кишечнике и анальной области при злокачественных новообразованиях (уровень 1)",3.05,3.536,null,1,"Таблица 3","Таблица 3","Таблица 4"]
[135,19,60,"Онкология","st19.005","Операции на кишечнике и анальной области при злокачественных новообразованиях (уровень 2)",5.31,3.536,null,1,"Таблица 3","Таблица 3","Таблица 4"]
[136,19,60,"Онкология","st19.006","Операции при злокачественных новообразованиях почки и мочевыделительной системы (уровень 1)",1.66,3.536,null,1,"Таблица 3","Таблица 3","Таблица 4"]
[137,19,60,"Онкология","st19.007","Операции при злокачественных новообразованиях почки и мочевыделительной системы (уровень 2)",2.77,3.536,null,1,"Таблица 3","Таблица 3","Таблица 4"]
[138,19,60,"Онкология","st19.008","Операции при злокачественных новообразованиях почки и мочевыделительной системы (уровень 3)",4.32,3.536,null,1,"Таблица 3","Таблица 3","Таблица 4"]
[139,19,60,"Онкология","st19.009","Операции при злокачественных новообразованиях кожи (уровень 1)",1.29,3.536,null,1,"Таблица 3","Таблица 3","Таблица 4"]
[140,19,60,"Онкология","st19.010","Операции при злокачественных новообразованиях кожи (уровень 2)",1.55,3.536,null,1,"Таблица 3","Таблица 3","Таблица 4"]
[141,19,60,"Онкология","st19.011","Операции при злокачественных новообразованиях кожи (уровень 3)",2.66,3.536,null,1,"Таблица 3","Таблица 3","Таблица 4"]
[142,19,60,"Онкология","st19.012","Операции при злокачественном новообразовании щитовидной железы (уровень 1)",2.29,3.536,null,1,"Таблица 3","Таблица 3","Таблица 4"]
[143,19,60,"Онкология","st19.013","Операции при злокачественном новообразовании щитовидной железы (уровень 2)",2.4900000000000002,3.536,null,1,"Таблица 3","Таблица 3","Таблица 4"]
[144,19,60,"Онкология","st19.014","Мастэктомия, другие операции при злокачественном новообразовании молочной железы (уровень 1)",2.79,3.536,null,1,"Таблица 3","Таблица 3","Таблица 4"]
[145,19,60,"Онкология","st19.015","Мастэктомия, другие операции при злокачественном новообразовании молочной железы (уровень 2)",3.95,3.536,null,1,"Таблица 3","Таблица 3","Таблица 4"]
[146,19,60,"Онкология","st19.016","Операции при злокачественном новообразовании желчного пузыря, желчных протоков и поджелудочной железы (уровень 1)",2.38,3.536,null,1,"Таблица 3","Таблица 3","Таблица 4"]
[147,19,60,"Онкология","st19.017","Операции при злокачественном новообразовании желчного пузыря, желчных протоков и поджелудочной железы (уровень 2)",4.4400000000000004,3.536,null,1,"Таблица 3","Таблица 3","Таблица 4"]
[148,19,60,"Онкология","st19.018","Операции при злокачественном новообразовании пищевода, желудка (уровень 1)",2.17,3.536,null,1,"Таблица 3","Таблица 3","Таблица 4"]
[149,19,60,"Онкология","st19.019","Операции при злокачественном новообразовании пищевода, желудка (уровень 2)",3.43,3.536,null,1,"Таблица 3","Таблица 3","Таблица 4"]
[150,19,60,"Онкология","st19.020","Операции при злокачественном новообразовании пищевода, желудка (уровень 3)",4.2699999999999996,3.536,null,1,"Таблица 3","Таблица 3","Таблица 4"]
[151,19,60,"Онкология","st19.021","Другие операции при злокачественном новообразовании брюшной полости",3.66,3.536,null,1,"Таблица 3","Таблица 3","Таблица 4"]
[152,19,60,"Онкология","st19.022","Операции на органе слуха, придаточных пазухах носа и верхних дыхательных путях при злокачественных новообразованиях",2.81,3.536,null,1,"Таблица 3","Таблица 3","Таблица 4"]
[153,19,60,"Онкология","st19.023","Операции на нижних дыхательных путях и легочной ткани при злокачественных новообразованиях (уровень 1)",3.42,3.536,null,1,"Таблица 3","Таблица 3","Таблица 4"]
[154,19,60,"Онкология","st19.024","Операции на нижних дыхательных путях и легочной ткани при злокачественных новообразованиях (уровень 2)",5.31,3.536,null,1,"Таблица 3","Таблица 3","Таблица 4"]
[155,19,60,"Онкология","st19.025","Операции при злокачественных новообразованиях мужских половых органов (уровень 1)",2.86,3.536,null,1,"Таблица 3","Таблица 3","Таблица 4"]
[156,19,60,"Онкология","st19.026","Операции при злокачественных новообразованиях мужских половых органов (уровень 2)",4.3099999999999996,3.536,null,1,"Таблица 3","Таблица 3","Таблица 4"]
[157,19,60,"Онкология","st19.123","Прочие операции при ЗНО (уровень 1)",1.1100000000000001,3.536,0.28129999999999999,1,"Таблица 3","Таблица 3","Таблица 4"]
[158,19,60,"Онкология","st19.124","Прочие операции при ЗНО (уровень 2)",2.9,3.536,0.39560000000000001,1,"Таблица 3","Таблица 3","Таблица 4"]
[159,19,60,"Онкология","st19.037","Фебрильная нейтропения, агранулоцитоз вследствие проведения лекарственной терапии злокачественных новообразований",2.93,3.536,null,1,"Таблица 3","Таблица 3","Таблица 4"]
[160,19,60,"Онкология","st19.038","Установка, замена порт-системы (катетера) для лекарственной терапии злокачественных новообразований",1.24,3.536,null,1,"Таблица 3","Таблица 3","Таблица 4"]
[161,19,60,"Онкология","st19.075","Лучевая терапия (уровень 1)",0.79,3.536,null,1,"Таблица 3","Таблица 3","Таблица 4"]
[162,19,60,"Онкология","st19.076","Лучевая терапия (уровень 2)",1.1399999999999999,3.536,null,1,"Таблица 3","Таблица 3","Таблица 4"]
[163,19,60,"Онкология","st19.077","Лучевая терапия (уровень 3)",2.46,3.536,null,1,"Таблица 3","Таблица 3","Таблица 4"]
[164,19,60,"Онкология","st19.078","Лучевая терапия (уровень 4)",2.5099999999999998,3.536,null,1,"Таблица 3","Таблица 3","Таблица 4"]
[165,19,60,"Онкология","st19.079","Лучевая терапия (уровень 5)",2.82,3.536,null,1,"Таблица 3","Таблица 3","Таблица 4"]
[166,19,60,"Онкология","st19.080","Лучевая терапия (уровень 6)",4.51,3.536,null,1,"Таблица 3","Таблица 3","Таблица 4"]
[167,19,60,"Онкология","st19.081","Лучевая терапия (уровень 7)",4.87,3.536,null,1,"Таблица 3","Таблица 3","Таблица 4"]
[168,19,60,"Онкология","st19.082","Лучевая терапия (уровень 8)",14.55,3.536,null,1,"Таблица 3","Таблица 3","Таблица 4"]
[169,19,60,"Онкология","st19.084","Лучевая терапия в сочетании с лекарственной терапией (уровень 2)",3.78,3.536,0.87080000000000002,1,"Таблица 3","Таблица 3","Таблица 4"]
[170,19,60,"Онкология","st19.085","Лучевая терапия в сочетании с лекарственной терапией (уровень 3)",4.37,3.536,0.88839999999999997,1,"Таблица 3","Таблица 3","Таблица 4"]
[171,19,60,"Онкология","st19.086","Лучевая терапия в сочетании с лекарственной терапией (уровень 4)",5.85,3.536,0.87050000000000005,1,"Таблица 3","Таблица 3","Таблица 4"]
[172,19,60,"Онкология","st19.087","Лучевая терапия в сочетании с лекарственной терапией (уровень 5)",6.57,3.536,0.88490000000000002,1,"Таблица 3","Таблица 3","Таблица 4"]
[173,19,60,"Онкология","st19.088","Лучевая терапия в сочетании с лекарственной терапией (уровень 6)",9.49,3.536,0.46029999999999999,1,"Таблица 3","Таблица 3","Таблица 4"]
[174,19,60,"Онкология","st19.089","Лучевая терапия в сочетании с лекарственной терапией (уровень 7)",16.32,3.536,0.2676,1,"Таблица 3","Таблица 3","Таблица 4"]
[175,19,60,"Онкология","st19.090","ЗНО лимфоидной и кроветворной тканей без специального противоопухолевого лечения (уровень 1)",0.42,3.536,null,1,"Таблица 3","Таблица 3","Таблица 4"]
[176,19,60,"Онкология","st19.091","ЗНО лимфоидной и кроветворной тканей без специального противоопухолевого лечения (уровень 2)",1.6,3.536,null,1,"Таблица 3","Таблица 3","Таблица 4"]
[177,19,60,"Онкология","st19.092","ЗНО лимфоидной и кроветворной тканей без специального противоопухолевого лечения (уровень 3)",3.36,3.536,null,1,"Таблица 3","Таблица 3","Таблица 4"]
[178,19,60,"Онкология","st19.093","ЗНО лимфоидной и кроветворной тканей без специального противоопухолевого лечения (уровень 4)",6,3.536,null,1,"Таблица 3","Таблица 3","Таблица 4"]
[179,19,60,"Онкология","st19.094","ЗНО лимфоидной и кроветворной тканей, лекарственная терапия, взрослые (уровень 1)",1.64,3.536,0.79859999999999998,1,"Таблица 3","Таблица 3","Таблица 4"]
[180,19,60,"Онкология","st19.095","ЗНО лимфоидной и кроветворной тканей, лекарственная терапия, взрослые (уровень 2)",4.0999999999999996,3.536,0.79859999999999998,1,"Таблица 3","Таблица 3","Таблица 4"]
[181,19,60,"Онкология","st19.096","ЗНО лимфоидной и кроветворной тканей, лекарственная терапия, взрослые (уровень 3)",7.78,3.536,0.79859999999999998,1,"Таблица 3","Таблица 3","Таблица 4"]
[182,19,60,"Онкология","st19.097","ЗНО лимфоидной и кроветворной тканей, лекарственная терапия с применением отдельных препаратов (по перечню), взрослые (уровень 1)",3.59,3.536,0.32819999999999999,1,"Таблица 3","Таблица 3","Таблица 4"]
[183,19,60,"Онкология","st19.098","ЗНО лимфоидной и кроветворной тканей, лекарственная терапия с применением отдельных препаратов (по перечню), взрослые (уровень 2)",6.24,3.536,0.52810000000000001,1,"Таблица 3","Таблица 3","Таблица 4"]
[184,19,60,"Онкология","st19.099","ЗНО лимфоидной и кроветворной тканей, лекарственная терапия с применением отдельных препаратов (по перечню), взрослые (уровень 3)",9.5399999999999991,3.536,0.62160000000000004,1,"Таблица 3","Таблица 3","Таблица 4"]
[185,19,60,"Онкология","st19.100","ЗНО лимфоидной и кроветворной тканей, лекарственная терапия с применением отдельных препаратов (по перечню), взрослые (уровень 4)",13.88,3.536,6.3399999999999998E-2,1,"Таблица 3","Таблица 3","Таблица 4"]
[186,19,60,"Онкология","st19.101","ЗНО лимфоидной и кроветворной тканей, лекарственная терапия с применением отдельных препаратов (по перечню), взрослые (уровень 5)",16.87,3.536,0.19389999999999999,1,"Таблица 3","Таблица 3","Таблица 4"]
[187,19,60,"Онкология","st19.102","ЗНО лимфоидной и кроветворной тканей, лекарственная терапия с применением отдельных препаратов (по перечню), взрослые (уровень 6)",20.32,3.536,0.2964,1,"Таблица 3","Таблица 3","Таблица 4"]
[188,19,60,"Онкология","st19.103","Лучевые повреждения",2.64,3.536,null,1,"Таблица 3","Таблица 3","Таблица 4"]
[189,19,60,"Онкология","st19.104","Эвисцерация малого таза при лучевых повреждениях",19.75,3.536,null,1,"Таблица 3","Таблица 3","Таблица 4"]
[190,19,60,"Онкология","st19.122","Посттрансплантационный период после пересадки костного мозга",21.02,3.536,0.62439999999999996,1,"Таблица 3","Таблица 3","Таблица 4"]
[191,19,60,"Онкология","st19.125","Лекарственная терапия при злокачественных новообразованиях (кроме лимфоидной и кроветворной тканей), взрослые (уровень 1)",0.38,3.536,0.57989999999999997,1,"Таблица 3","Таблица 3","Таблица 4"]
[192,19,60,"Онкология","st19.126","Лекарственная терапия при злокачественных новообразованиях (кроме лимфоидной и кроветворной тканей), взрослые (уровень 2)",0.79,3.536,0.37809999999999999,1,"Таблица 3","Таблица 3","Таблица 4"]
[193,19,60,"Онкология","st19.127","Лекарственная терапия при злокачественных новообразованиях (кроме лимфоидной и кроветворной тканей), взрослые (уровень 3)",1.0900000000000001,3.536,0.2099,1,"Таблица 3","Таблица 3","Таблица 4"]
[194,19,60,"Онкология","st19.128","Лекарственная терапия при злокачественных новообразованиях (кроме лимфоидной и кроветворной тканей), взрослые (уровень 4)",1.45,3.536,0.28999999999999998,1,"Таблица 3","Таблица 3","Таблица 4"]
[195,19,60,"Онкология","st19.129","Лекарственная терапия при злокачественных новообразованиях (кроме лимфоидной и кроветворной тканей), взрослые (уровень 5)",2.08,3.536,0.25840000000000002,1,"Таблица 3","Таблица 3","Таблица 4"]
[196,19,60,"Онкология","st19.130","Лекарственная терапия при злокачественных новообразованиях (кроме лимфоидной и кроветворной тканей), взрослые (уровень 6)",2.4900000000000002,3.536,8.6499999999999994E-2,1,"Таблица 3","Таблица 3","Таблица 4"]
[197,19,60,"Онкология","st19.131","Лекарственная терапия при злокачественных новообразованиях (кроме лимфоидной и кроветворной тканей), взрослые (уровень 7)",3.21,3.536,9.64E-2,1,"Таблица 3","Таблица 3","Таблица 4"]
[198,19,60,"Онкология","st19.132","Лекарственная терапия при злокачественных новообразованиях (кроме лимфоидной и кроветворной тканей), взрослые (уровень 8)",3.97,3.536,8.3000000000000004E-2,1,"Таблица 3","Таблица 3","Таблица 4"]
[199,19,60,"Онкология","st19.133","Лекарственная терапия при злокачественных новообразованиях (кроме лимфоидной и кроветворной тканей), взрослые (уровень 9)",4.47,3.536,8.2500000000000004E-2,1,"Таблица 3","Таблица 3","Таблица 4"]
[200,19,60,"Онкология","st19.134","Лекарственная терапия при злокачественных новообразованиях (кроме лимфоидной и кроветворной тканей), взрослые (уровень 10)",4.8899999999999997,3.536,5.8099999999999999E-2,1,"Таблица 3","Таблица 3","Таблица 4"]
[201,19,60,"Онкология","st19.135","Лекарственная терапия при злокачественных новообразованиях (кроме лимфоидной и кроветворной тканей), взрослые (уровень 11)",5.51,3.536,6.3600000000000004E-2,1,"Таблица 3","Таблица 3","Таблица 4"]
[202,19,60,"Онкология","st19.136","Лекарственная терапия при злокачественных новообразованиях (кроме лимфоидной и кроветворной тканей), взрослые (уровень 12)",7.23,3.536,3.7199999999999997E-2,1,"Таблица 3","Таблица 3","Таблица 4"]
[203,19,60,"Онкология","st19.137","Лекарственная терапия при злокачественных новообразованиях (кроме лимфоидной и кроветворной тканей), взрослые (уровень 13)",8.84,3.536,2.3400000000000001E-2,1,"Таблица 3","Таблица 3","Таблица 4"]
[204,19,60,"Онкология","st19.138","Лекарственная терапия при злокачественных новообразованиях (кроме лимфоидной и кроветворной тканей), взрослые (уровень 14)",10.57,3.536,2.1100000000000001E-2,1,"Таблица 3","Таблица 3","Таблица 4"]
[205,19,60,"Онкология","st19.139","Лекарственная терапия при злокачественных новообразованиях (кроме лимфоидной и кроветворной тканей), взрослые (уровень 15)",13.73,3.536,1.5900000000000001E-2,1,"Таблица 3","Таблица 3","Таблица 4"]
[206,19,60,"Онкология","st19.140","Лекарственная терапия при злокачественных новообразованиях (кроме лимфоидной и кроветворной тканей), взрослые (уровень 16)",16.29,3.536,1.2500000000000001E-2,1,"Таблица 3","Таблица 3","Таблица 4"]
[207,19,60,"Онкология","st19.141","Лекарственная терапия при злокачественных новообразованиях (кроме лимфоидной и кроветворной тканей), взрослые (уровень 17)",19.96,3.536,9.9000000000000008E-3,1,"Таблица 3","Таблица 3","Таблица 4"]
[208,19,60,"Онкология","st19.142","Лекарственная терапия при злокачественных новообразованиях (кроме лимфоидной и кроветворной тканей), взрослые (уровень 18)",26.46,3.536,7.4999999999999997E-3,1,"Таблица 3","Таблица 3","Таблица 4"]
[209,19,60,"Онкология","st19.143","Лекарственная терапия при злокачественных новообразованиях (кроме лимфоидной и кроветворной тканей), взрослые (уровень 19)",35.35,3.536,5.5999999999999999E-3,1,"Таблица 3","Таблица 3","Таблица 4"]
[210,20,162,"Оториноларингология","st20.001","Доброкачественные новообразования, новообразования in situ уха, горла, носа, полости рта",0.66,3.536,null,1,"Таблица 3","Таблица 3","Таблица 4"]
[211,20,162,"Оториноларингология","st20.002","Средний отит, мастоидит, нарушения вестибулярной функции",0.47,3.536,null,1,"Таблица 3","Таблица 3","Таблица 4"]
[212,20,162,"Оториноларингология","st20.003","Другие болезни уха",0.61,3.536,null,1,"Таблица 3","Таблица 3","Таблица 4"]
[213,20,162,"Оториноларингология","st20.004","Другие болезни и врожденные аномалии верхних дыхательных путей, симптомы и признаки, относящиеся к органам дыхания, нарушения речи",0.71,3.536,null,1,"Таблица 3","Таблица 3","Таблица 4"]
[214,20,162,"Оториноларингология","st20.005","Операции на органе слуха, придаточных пазухах носа и верхних дыхательных путях (уровень 1)",0.84,3.536,null,1,"Таблица 3","Таблица 3","Таблица 4"]
[215,20,162,"Оториноларингология","st20.006","Операции на органе слуха, придаточных пазухах носа и верхних дыхательных путях (уровень 2)",0.91,3.536,null,1,"Таблица 3","Таблица 3","Таблица 4"]
[216,20,162,"Оториноларингология","st20.007","Операции на органе слуха, придаточных пазухах носа и верхних дыхательных путях (уровень 3)",1.1000000000000001,3.536,null,1,"Таблица 3","Таблица 3","Таблица 4"]
[217,20,162,"Оториноларингология","st20.008","Операции на органе слуха, придаточных пазухах носа и верхних дыхательных путях (уровень 4)",1.35,3.536,null,1,"не применяется","не применяется","Таблица 4"]
[218,20,162,"Оториноларингология","st20.009","Операции на органе слуха, придаточных пазухах носа и верхних дыхательных путях (уровень 5)",1.96,3.536,null,1,"не применяется","не применяется","Таблица 4"]
[219,20,162,"Оториноларингология","st20.010","Замена речевого процессора",29.91,3.536,7.4000000000000003E-3,1,"не применяется","не применяется","Таблица 4"]
[220,21,65,"Офтальмология","st21.001","Операции на органе зрения (уровень 1)",0.49,3.536,null,1,"Таблица 3","Таблица 3","Таблица 4"]
[221,21,65,"Офтальмология","st21.002","Операции на органе зрения (уровень 2)",0.79,3.536,null,1,"Таблица 3","Таблица 3","Таблица 4"]
[222,21,65,"Офтальмология","st21.003","Операции на органе зрения (уровень 3)",1.07,3.536,null,1,"Таблица 3","Таблица 3","Таблица 4"]
[223,21,65,"Офтальмология","st21.004","Операции на органе зрения (уровень 4)",1.19,3.536,null,1,"не применяется","не применяется","Таблица 4"]
[224,21,65,"Офтальмология","st21.005","Операции на органе зрения (уровень 5)",2.11,3.536,null,1,"Таблица 3","Таблица 3","Таблица 4"]
[225,21,65,"Офтальмология","st21.006","Операции на органе зрения (уровень 6)",3.29,3.536,null,1,"не применяется","не применяется","Таблица 4"]
[226,21,65,"Офтальмология","st21.007","Болезни глаза",0.51,3.536,null,1,"Таблица 3","Таблица 3","Таблица 4"]
[227,21,65,"Офтальмология","st21.008","Травмы глаза",0.66,3.536,null,1,"Таблица 3","Таблица 3","Таблица 4"]
[228,21,65,"Офтальмология","st21.009","Операции на органе зрения (факоэмульсификация с имплантацией ИОЛ)",1.24,3.536,0.14380000000000001,1,"не применяется","не применяется","Таблица 4"]
[229,22,68,"Педиатрия","st22.001","Нарушения всасывания, дети",1.1100000000000001,3.536,null,1,"Таблица 3","Таблица 3","Таблица 4"]
[230,22,68,"Педиатрия","st22.002","Другие болезни органов пищеварения, дети",0.39,3.536,null,1,"Таблица 3","Таблица 3","Таблица 4"]
[231,22,68,"Педиатрия","st22.003","Воспалительные артропатии, спондилопатии, дети",1.85,3.536,null,1,"Таблица 3","Таблица 3","Таблица 4"]
[232,22,68,"Педиатрия","st22.004","Врожденные аномалии головного и спинного мозга, дети",2.12,3.536,null,1,"Таблица 3","Таблица 3","Таблица 4"]
[233,23,75,"Пульмонология","st23.001","Другие болезни органов дыхания",0.85,3.536,null,1,"Таблица 3","Таблица 3","Таблица 4"]
[234,23,75,"Пульмонология","st23.002","Интерстициальные болезни легких, врожденные аномалии развития легких, бронхо-легочная дисплазия, дети",2.48,3.536,null,1,"Таблица 3","Таблица 3","Таблица 4"]
[235,23,75,"Пульмонология","st23.003","Доброкачественные новообразования, новообразования in situ органов дыхания, других и неуточненных органов грудной клетки",0.91,3.536,null,1,"Таблица 3","Таблица 3","Таблица 4"]
[236,23,75,"Пульмонология","st23.004","Пневмония, плеврит, другие болезни плевры",1.28,3.536,null,1,"Таблица 3","Таблица 3","Таблица 4"]
[237,23,75,"Пульмонология","st23.005","Астма, взрослые",1.1100000000000001,3.536,null,1,"Таблица 3","Таблица 3","Таблица 4"]
[238,23,75,"Пульмонология","st23.006","Астма, дети",1.25,3.536,null,1,"Таблица 3","Таблица 3","Таблица 4"]
[239,24,77,"Ревматология","st24.001","Системные поражения соединительной ткани",1.78,3.536,null,1,"Таблица 3","Таблица 3","Таблица 4"]
[240,24,77,"Ревматология","st24.002","Артропатии и спондилопатии",1.67,3.536,null,1,"Таблица 3","Таблица 3","Таблица 4"]
[241,24,77,"Ревматология","st24.003","Ревматические болезни сердца (уровень 1)",0.87,3.536,null,1,"Таблица 3","Таблица 3","Таблица 4"]
[242,24,77,"Ревматология","st24.004","Ревматические болезни сердца (уровень 2)",1.57,3.536,null,1,"Таблица 3","Таблица 3","Таблица 4"]
[243,25,81,"Сердечно-сосудистая хирургия","st25.001","Флебит и тромбофлебит, варикозное расширение вен нижних конечностей",0.85,3.536,null,1,"Таблица 3","Таблица 3","Таблица 4"]
[244,25,81,"Сердечно-сосудистая хирургия","st25.002","Другие болезни, врожденные аномалии вен",1.32,3.536,null,1,"Таблица 3","Таблица 3","Таблица 4"]
[245,25,81,"Сердечно-сосудистая хирургия","st25.003","Болезни артерий, артериол и капилляров",1.05,3.536,null,1,"Таблица 3","Таблица 3","Таблица 4"]
[246,25,81,"Сердечно-сосудистая хирургия","st25.004","Диагностическое обследование сердечно-сосудистой системы",1.01,3.536,null,1,"Таблица 3","Таблица 3","Таблица 4"]
[247,25,81,"Сердечно-сосудистая хирургия","st25.005","Операции на сердце и коронарных сосудах (уровень 1)",2.11,3.536,null,1,"Таблица 3","Таблица 3","Таблица 4"]
[248,25,81,"Сердечно-сосудистая хирургия","st25.006","Операции на сердце и коронарных сосудах (уровень 2)",3.97,3.536,null,1,"Таблица 3","Таблица 3","Таблица 4"]
[249,25,81,"Сердечно-сосудистая хирургия","st25.007","Операции на сердце и коронарных сосудах (уровень 3)",4.3099999999999996,3.536,null,1,"Таблица 3","Таблица 3","Таблица 4"]
[250,25,81,"Сердечно-сосудистая хирургия","st25.008","Операции на сосудах (уровень 1)",1.2,3.536,null,1,"Таблица 3","Таблица 3","Таблица 4"]
[251,25,81,"Сердечно-сосудистая хирургия","st25.009","Операции на сосудах (уровень 2)",2.37,3.536,null,1,"Таблица 3","Таблица 3","Таблица 4"]
[252,25,81,"Сердечно-сосудистая хирургия","st25.010","Операции на сосудах (уровень 3)",4.13,3.536,null,1,"Таблица 3","Таблица 3","Таблица 4"]
[253,25,81,"Сердечно-сосудистая хирургия","st25.011","Операции на сосудах (уровень 4)",6.08,3.536,null,1,"Таблица 3","Таблица 3","Таблица 4"]
[254,25,81,"Сердечно-сосудистая хирургия","st25.012","Операции на сосудах (уровень 5)",7.12,3.536,null,1,"Таблица 3","Таблица 3","Таблица 4"]
[255,26,86,"Стоматология детская","st26.001","Болезни полости рта, слюнных желез и челюстей, врожденные аномалии лица и шеи, дети",0.79,3.536,null,1,"Таблица 3","Таблица 3","Таблица 4"]
[256,27,97,"Терапия","st27.001","Болезни пищевода, гастрит, дуоденит, другие болезни желудка и двенадцатиперстной кишки",0.74,3.536,null,0.8,"не применяется","не применяется","Таблица 4"]
[257,27,"97","Терапия","st27.002","Новообразования доброкачественные, in situ, неопределенного и неуточненного характера органов пищеварения",0.69,3.536,null,0.8,"Таблица 3","Таблица 3","Таблица 4"]
[258,27,"97","Терапия","st27.003","Болезни желчного пузыря",0.72,3.536,null,0.8,"не применяется","не применяется","Таблица 4"]
[259,27,"97","Терапия","st27.004","Другие болезни органов пищеварения, взрослые",0.59,3.536,null,0.8,"Таблица 3","Таблица 3","Таблица 4"]
[260,27,"97","Терапия","st27.005","Гипертоническая болезнь в стадии обострения",0.7,3.536,null,0.8,"не применяется","не применяется","Таблица 4"]
[261,27,"97","Терапия","st27.006","Стенокардия (кроме нестабильной), хроническая ишемическая болезнь сердца (уровень 1)",0.78,3.536,null,0.8,"не применяется","не применяется","Таблица 4"]
[262,27,"97","Терапия","st27.007","Стенокардия (кроме нестабильной), хроническая ишемическая болезнь сердца (уровень 2)",1.7,3.536,null,0.8,"Таблица 3","Таблица 3","Таблица 4"]
[263,27,"97","Терапия","st27.008","Другие болезни сердца (уровень 1)",0.78,3.536,null,0.8,"Таблица 3","Таблица 3","Таблица 4"]
[264,27,"97","Терапия","st27.009","Другие болезни сердца (уровень 2)",1.54,3.536,null,0.8,"Таблица 3","Таблица 3","Таблица 4"]
[265,27,"97","Терапия","st27.010","Бронхит необструктивный, симптомы и признаки, относящиеся к органам дыхания",0.75,3.536,null,0.8,"не применяется","не применяется","Таблица 4"]
[266,27,"97","Терапия","st27.011","ХОБЛ, эмфизема, бронхоэктатическая болезнь",0.89,3.536,null,0.8,"Таблица 3","Таблица 3","Таблица 4"]
[267,27,"97","Терапия","st27.012","Отравления и другие воздействия внешних причин",0.53,3.536,null,0.8,"Таблица 3","Таблица 3","Таблица 4"]
[268,27,"97","Терапия","st27.013","Отравления и другие воздействия внешних причин с синдромом органной дисфункции",4.07,3.536,null,0.8,"Таблица 3","Таблица 3","Таблица 4"]
[269,27,"97","Терапия","st27.014","Госпитализация в диагностических целях с постановкой/ подтверждением диагноза злокачественного новообразования",1,3.536,null,0.8,"Таблица 3","Таблица 3","Таблица 4"]
[270,28,99,"Торакальная хирургия","st28.001","Гнойные состояния нижних дыхательных путей",2.0499999999999998,3.536,null,1,"Таблица 3","Таблица 3","Таблица 4"]
[271,28,99,"Торакальная хирургия","st28.002","Операции на нижних дыхательных путях и легочной ткани, органах средостения (уровень 1)",1.54,3.536,null,1,"Таблица 3","Таблица 3","Таблица 4"]
[272,28,99,"Торакальная хирургия","st28.003","Операции на нижних дыхательных путях и легочной ткани, органах средостения (уровень 2)",1.92,3.536,null,1,"Таблица 3","Таблица 3","Таблица 4"]
[273,28,99,"Торакальная хирургия","st28.004","Операции на нижних дыхательных путях и легочной ткани, органах средостения (уровень 3)",2.56,3.536,null,1,"не применяется","не применяется","Таблица 4"]
[274,28,99,"Торакальная хирургия","st28.005","Операции на нижних дыхательных путях и легочной ткани, органах средостения (уровень 4)",4.12,3.536,null,1,"не применяется","не применяется","Таблица 4"]
[275,29,"100","Травматология и ортопедия","st29.001","Приобретенные и врожденные костно-мышечные деформации",0.99,3.536,null,1,"Таблица 3","Таблица 3","Таблица 4"]
[276,29,"100","Травматология и ортопедия","st29.002","Переломы шейки бедра и костей таза",1.52,3.536,null,1,"не применяется","не применяется","Таблица 4"]
[277,29,"100","Травматология и ортопедия","st29.003","Переломы бедренной кости, другие травмы области бедра и тазобедренного сустава",0.69,3.536,null,1,"не применяется","не применяется","Таблица 4"]
[278,29,"100","Травматология и ортопедия","st29.004","Переломы, вывихи, растяжения области грудной клетки, верхней конечности и стопы",0.56000000000000005,3.536,null,1,"не применяется","не применяется","Таблица 4"]
[279,29,"100","Травматология и ортопедия","st29.005","Переломы, вывихи, растяжения области колена и голени",0.74,3.536,null,1,"не применяется","не применяется","Таблица 4"]
[280,29,"100","Травматология и ортопедия","st29.006","Множественные переломы, травматические ампутации, размозжения и последствия травм",1.44,3.536,null,1,"Таблица 3","Таблица 3","Таблица 4"]
[281,29,"100","Травматология и ортопедия","st29.007","Тяжелая множественная и сочетанная травма (политравма)",7.07,3.536,null,1,"Таблица 3","Таблица 3","Таблица 4"]
[282,29,"100","Травматология и ортопедия","st29.008","Эндопротезирование суставов",4.46,3.536,null,1,"Таблица 3","Таблица 3","Таблица 4"]
[283,29,"100","Травматология и ортопедия","st29.009","Операции на костно-мышечной системе и суставах (уровень 1)",0.79,3.536,null,1,"Таблица 3","Таблица 3","Таблица 4"]
[284,29,"100","Травматология и ортопедия","st29.010","Операции на костно-мышечной системе и суставах (уровень 2)",0.93,3.536,null,1,"Таблица 3","Таблица 3","Таблица 4"]
[285,29,"100","Травматология и ортопедия","st29.011","Операции на костно-мышечной системе и суставах (уровень 3)",1.37,3.536,null,1,"Таблица 3","Таблица 3","Таблица 4"]
[286,29,"100","Травматология и ортопедия","st29.012","Операции на костно-мышечной системе и суставах (уровень 4)",2.42,3.536,null,1,"не применяется","не применяется","Таблица 4"]
[287,29,"100","Травматология и ортопедия","st29.013","Операции на костно-мышечной системе и суставах (уровень 5)",3.15,3.536,null,1,"не применяется","не применяется","Таблица 4"]
[288,30,"108","Урология","st30.001","Тубулоинтерстициальные болезни почек, другие болезни мочевой системы",0.86,3.536,null,1,"Таблица 3","Таблица 3","Таблица 4"]
[289,30,"108","Урология","st30.002","Камни мочевой системы; симптомы, относящиеся к мочевой системе",0.49,3.536,null,1,"Таблица 3","Таблица 3","Таблица 4"]
[290,30,"108","Урология","st30.003","Доброкачественные новообразования, новообразования in situ, неопределенного и неизвестного характера мочевых органов и мужских половых органов",0.64,3.536,null,1,"Таблица 3","Таблица 3","Таблица 4"]
[291,30,"108","Урология","st30.004","Болезни предстательной железы",0.73,3.536,null,1,"не применяется","не применяется","Таблица 4"]
[292,30,"108","Урология","st30.005","Другие болезни, врожденные аномалии, повреждения мочевой системы и мужских половых органов",0.67,3.536,null,1,"Таблица 3","Таблица 3","Таблица 4"]
[293,30,"108","Урология","st30.006","Операции на мужских половых органах, взрослые (уровень 1)",1.2,3.536,null,1,"Таблица 3","Таблица 3","Таблица 4"]
[294,30,"108","Урология","st30.007","Операции на мужских половых органах, взрослые (уровень 2)",1.42,3.536,null,1,"Таблица 3","Таблица 3","Таблица 4"]
[295,30,"108","Урология","st30.008","Операции на мужских половых органах, взрослые (уровень 3)",2.31,3.536,null,1,"не применяется","не применяется","Таблица 4"]
[296,30,"108","Урология","st30.009","Операции на мужских половых органах, взрослые (уровень 4)",3.12,3.536,null,1,"не применяется","не применяется","Таблица 4"]
[297,30,"108","Урология","st30.010","Операции на почке и мочевыделительной системе, взрослые (уровень 1)",1.08,3.536,null,1,"Таблица 3","Таблица 3","Таблица 4"]
[298,30,"108","Урология","st30.011","Операции на почке и мочевыделительной системе, взрослые (уровень 2)",1.1200000000000001,3.536,null,1,"Таблица 3","Таблица 3","Таблица 4"]
[299,30,"108","Урология","st30.012","Операции на почке и мочевыделительной системе, взрослые (уровень 3)",1.62,3.536,null,1,"Таблица 3","Таблица 3","Таблица 4"]
[300,30,"108","Урология","st30.013","Операции на почке и мочевыделительной системе, взрослые (уровень 4)",1.95,3.536,null,1,"Таблица 3","Таблица 3","Таблица 4"]
[301,30,"108","Урология","st30.014","Операции на почке и мочевыделительной системе, взрослые (уровень 5)",2.14,3.536,null,1,"Таблица 3","Таблица 3","Таблица 4"]
[302,30,"108","Урология","st30.015","Операции на почке и мочевыделительной системе, взрослые (уровень 6)",4.13,3.536,null,1,"не применяется","не применяется","Таблица 4"]
[303,31,"112","Хирургия","st31.001","Болезни лимфатических сосудов и лимфатических узлов",0.61,3.536,null,1,"Таблица 3","Таблица 3","Таблица 4"]
[304,31,"112","Хирургия","st31.002","Операции на коже, подкожной клетчатке, придатках кожи (уровень 1)",0.55000000000000004,3.536,null,1,"не применяется","не применяется","Таблица 4"]
[305,31,"112","Хирургия","st31.003","Операции на коже, подкожной клетчатке, придатках кожи (уровень 2)",0.71,3.536,null,1,"Таблица 3","Таблица 3","Таблица 4"]
[306,31,"112","Хирургия","st31.004","Операции на коже, подкожной клетчатке, придатках кожи (уровень 3)",1.38,3.536,null,1,"Таблица 3","Таблица 3","Таблица 4"]
[307,31,"112","Хирургия","st31.005","Операции на коже, подкожной клетчатке, придатках кожи (уровень 4)",2.41,3.536,null,1,"Таблица 3","Таблица 3","Таблица 4"]
[308,31,"112","Хирургия","st31.006","Операции на органах кроветворения и иммунной системы (уровень 1)",1.43,3.536,null,1,"Таблица 3","Таблица 3","Таблица 4"]
[309,31,"112","Хирургия","st31.007","Операции на органах кроветворения и иммунной системы (уровень 2)",1.83,3.536,null,1,"Таблица 3","Таблица 3","Таблица 4"]
[310,31,"112","Хирургия","st31.008","Операции на органах кроветворения и иммунной системы (уровень 3)",2.16,3.536,null,1,"Таблица 3","Таблица 3","Таблица 4"]
[311,31,"112","Хирургия","st31.009","Операции на эндокринных железах кроме гипофиза (уровень 1)",1.81,3.536,null,1,"не применяется","не применяется","Таблица 4"]
[312,31,"112","Хирургия","st31.010","Операции на эндокринных железах кроме гипофиза (уровень 2)",2.67,3.536,null,1,"не применяется","не применяется","Таблица 4"]
[313,31,"112","Хирургия","st31.011","Болезни молочной железы, новообразования молочной железы доброкачественные, in situ, неопределенного и неизвестного характера",0.73,3.536,null,1,"Таблица 3","Таблица 3","Таблица 4"]
[314,31,"112","Хирургия","st31.012","Артрозы, другие поражения суставов, болезни мягких тканей",0.76,3.536,null,1,"не применяется","не применяется","Таблица 4"]
[315,31,"112","Хирургия","st31.013","Остеомиелит (уровень 1)",2.42,3.536,null,1,"Таблица 3","Таблица 3","Таблица 4"]
[316,31,"112","Хирургия","st31.014","Остеомиелит (уровень 2)",3.51,3.536,null,1,"Таблица 3","Таблица 3","Таблица 4"]
[317,31,"112","Хирургия","st31.015","Остеомиелит (уровень 3)",4.0199999999999996,3.536,null,1,"Таблица 3","Таблица 3","Таблица 4"]
[318,31,"112","Хирургия","st31.016","Доброкачественные новообразования костно-мышечной системы и соединительной ткани",0.84,3.536,null,1,"Таблица 3","Таблица 3","Таблица 4"]
[319,31,"112","Хирургия","st31.017","Доброкачественные новообразования, новообразования in situ кожи, жировой ткани и другие болезни кожи",0.5,3.536,null,1,"Таблица 3","Таблица 3","Таблица 4"]
[320,31,"112","Хирургия","st31.018","Открытые раны, поверхностные, другие и неуточненные травмы",0.37,3.536,null,1,"не применяется","не применяется","Таблица 4"]
[321,31,"112","Хирургия","st31.019","Операции на молочной железе (кроме злокачественных новообразований)",1.19,3.536,null,1,"Таблица 3","Таблица 3","Таблица 4"]
[322,32,"1","Хирургия (абдоминальная)","st32.001","Операции на желчном пузыре и желчевыводящих путях (уровень 1)",1.1499999999999999,3.536,null,1,"Таблица 3","Таблица 3","Таблица 4"]
[323,32,"1","Хирургия (абдоминальная)","st32.002","Операции на желчном пузыре и желчевыводящих путях (уровень 2)",1.43,3.536,null,1,"Таблица 3","Таблица 3","Таблица 4"]
[324,32,"1","Хирургия (абдоминальная)","st32.003","Операции на желчном пузыре и желчевыводящих путях (уровень 3)",3,3.536,null,1,"Таблица 3","Таблица 3","Таблица 4"]
[325,32,"1","Хирургия (абдоминальная)","st32.004","Операции на желчном пузыре и желчевыводящих путях (уровень 4)",4.3,3.536,null,1,"не применяется","не применяется","Таблица 4"]
[326,32,"1","Хирургия (абдоминальная)","st32.005","Операции на печени и поджелудочной железе (уровень 1)",2.42,3.536,null,1,"Таблица 3","Таблица 3","Таблица 4"]
[327,32,"1","Хирургия (абдоминальная)","st32.006","Операции на печени и поджелудочной железе (уровень 2)",2.69,3.536,null,1,"Таблица 3","Таблица 3","Таблица 4"]
[328,32,"1","Хирургия (абдоминальная)","st32.007","Панкреатит, хирургическое лечение",4.12,3.536,null,1,"Таблица 3","Таблица 3","Таблица 4"]
[329,32,"1","Хирургия (абдоминальная)","st32.008","Операции на пищеводе, желудке, двенадцатиперстной кишке (уровень 1)",1.1599999999999999,3.536,null,1,"Таблица 3","Таблица 3","Таблица 4"]
[330,32,"1","Хирургия (абдоминальная)","st32.009","Операции на пищеводе, желудке, двенадцатиперстной кишке (уровень 2)",1.95,3.536,null,1,"Таблица 3","Таблица 3","Таблица 4"]
[331,32,"1","Хирургия (абдоминальная)","st32.010","Операции на пищеводе, желудке, двенадцатиперстной кишке (уровень 3)",2.46,3.536,null,1,"не применяется","не применяется","Таблица 4"]
[332,32,"1","Хирургия (абдоминальная)","st32.011","Аппендэктомия, взрослые (уровень 1)",0.73,3.536,null,1,"не применяется","не применяется","Таблица 4"]
[333,32,"1","Хирургия (абдоминальная)","st32.012","Аппендэктомия, взрослые (уровень 2)",0.91,3.536,null,1,"не применяется","не применяется","Таблица 4"]
[334,32,"1","Хирургия (абдоминальная)","st32.013","Операции по поводу грыж, взрослые (уровень 1)",0.86,3.536,null,1,"не применяется","не применяется","Таблица 4"]
[335,32,"1","Хирургия (абдоминальная)","st32.014","Операции по поводу грыж, взрослые (уровень 2)",1.24,3.536,null,1,"не применяется","не применяется","Таблица 4"]
[336,32,"1","Хирургия (абдоминальная)","st32.015","Операции по поводу грыж, взрослые (уровень 3)",1.78,3.536,null,1,"не применяется","не применяется","Таблица 4"]
[337,32,"1","Хирургия (абдоминальная)","st32.019","Операции по поводу грыж, взрослые (уровень 4)",5.6,3.536,null,1,"Таблица 3","Таблица 3","Таблица 4"]
[338,32,"1","Хирургия (абдоминальная)","st32.016","Другие операции на органах брюшной полости (уровень 1)",1.1299999999999999,3.536,null,1,"Таблица 3","Таблица 3","Таблица 4"]
[339,32,"1","Хирургия (абдоминальная)","st32.017","Другие операции на органах брюшной полости (уровень 2)",1.19,3.536,null,1,"Таблица 3","Таблица 3","Таблица 4"]
[340,32,"1","Хирургия (абдоминальная)","st32.018","Другие операции на органах брюшной полости (уровень 3)",2.13,3.536,null,1,"Таблица 3","Таблица 3","Таблица 4"]
[341,33,"114","Хирургия (комбустиология)","st33.001","Отморожения (уровень 1)",1.17,3.536,null,1,"Таблица 3","Таблица 3","Таблица 4"]
[342,33,"114","Хирургия (комбустиология)","st33.002","Отморожения (уровень 2)",2.91,3.536,null,1,"Таблица 3","Таблица 3","Таблица 4"]
[343,33,"114","Хирургия (комбустиология)","st33.003","Ожоги (уровень 1)",1.21,3.536,null,1,"Таблица 3","Таблица 3","Таблица 4"]
[344,33,"114","Хирургия (комбустиология)","st33.004","Ожоги (уровень 2)",2.0299999999999998,3.536,null,1,"Таблица 3","Таблица 3","Таблица 4"]
[345,33,"114","Хирургия (комбустиология)","st33.005","Ожоги (уровень 3)",3.54,3.536,null,1,"Таблица 3","Таблица 3","Таблица 4"]
[346,33,"114","Хирургия (комбустиология)","st33.006","Ожоги (уровень 4)",5.2,3.536,null,1,"Таблица 3","Таблица 3","Таблица 4"]
[347,33,"114","Хирургия (комбустиология)","st33.007","Ожоги (уровень 5)",11.11,3.536,null,1,"Таблица 3","Таблица 3","Таблица 4"]
[348,33,"114","Хирургия (комбустиология)","st33.008","Ожоги (уровень 4,5) с синдромом органной дисфункции",14.07,3.536,null,1,"Таблица 3","Таблица 3","Таблица 4"]
[349,34,116,"Челюстно-лицевая хирургия","st34.001","Болезни полости рта, слюнных желез и челюстей, врожденные аномалии лица и шеи, взрослые",0.89,3.536,null,1,"Таблица 3","Таблица 3","Таблица 4"]
[350,34,116,"Челюстно-лицевая хирургия","st34.002","Операции на органах полости рта (уровень 1)",0.74,3.536,null,1,"Таблица 3","Таблица 3","Таблица 4"]
[351,34,116,"Челюстно-лицевая хирургия","st34.003","Операции на органах полости рта (уровень 2)",1.27,3.536,null,1,"Таблица 3","Таблица 3","Таблица 4"]
[352,34,116,"Челюстно-лицевая хирургия","st34.004","Операции на органах полости рта (уровень 3)",1.63,3.536,null,1,"Таблица 3","Таблица 3","Таблица 4"]
[353,34,116,"Челюстно-лицевая хирургия","st34.005","Операции на органах полости рта (уровень 4)",1.9,3.536,null,1,"Таблица 3","Таблица 3","Таблица 4"]
[354,35,"122","Эндокринология","st35.001","Сахарный диабет, взрослые (уровень 1)",1.02,3.536,null,1,"Таблица 3","Таблица 3","Таблица 4"]
[355,35,"122","Эндокринология","st35.002","Сахарный диабет, взрослые (уровень 2)",1.49,3.536,null,1,"Таблица 3","Таблица 3","Таблица 4"]
[356,35,"122","Эндокринология","st35.003","Заболевания гипофиза, взрослые",2.14,3.536,null,1,"Таблица 3","Таблица 3","Таблица 4"]
[357,35,"122","Эндокринология","st35.004","Другие болезни эндокринной системы, взрослые (уровень 1)",1.25,3.536,null,1,"Таблица 3","Таблица 3","Таблица 4"]
[358,35,"122","Эндокринология","st35.005","Другие болезни эндокринной системы, взрослые (уровень 2)",2.76,3.536,null,1,"Таблица 3","Таблица 3","Таблица 4"]
[359,35,"122","Эндокринология","st35.006","Новообразования эндокринных желез доброкачественные, in situ, неопределенного и неизвестного характера",0.76,3.536,null,1,"Таблица 3","Таблица 3","Таблица 4"]
[360,35,"122","Эндокринология","st35.007","Расстройства питания",1.06,3.536,null,1,"Таблица 3","Таблица 3","Таблица 4"]
[361,35,"122","Эндокринология","st35.008","Другие нарушения обмена веществ",1.1599999999999999,3.536,null,1,"Таблица 3","Таблица 3","Таблица 4"]
[362,35,"122","Эндокринология","st35.009","Кистозный фиброз",3.32,3.536,null,1,"Таблица 3","Таблица 3","Таблица 4"]
[363,36,"0","Прочее","st36.001","Комплексное лечение с применением препаратов иммуноглобулина",4.32,3.536,null,1,"не применяется","не применяется","Таблица 4"]
[364,36,"0","Прочее","st36.002","Редкие генетические заболевания",3.5,3.536,null,1,"Таблица 3","Таблица 3","Таблица 4"]
[365,36,"0","Прочее","st36.004","Факторы, влияющие на состояние здоровья населения и обращения в учреждения здравоохранения",0.32,3.536,null,1,"Таблица 3","Таблица 3","Таблица 4"]
[366,36,"0","Прочее","st36.005","Госпитализация в диагностических целях с постановкой диагноза туберкулеза, ВИЧ-инфекции, психического заболевания",0.46,3.536,null,1,"Таблица 3","Таблица 3","Таблица 4"]
[367,36,"0","Прочее","st36.006","Отторжение, отмирание трансплантата органов и тканей",8.4,3.536,null,1,"Таблица 3","Таблица 3","Таблица 4"]
[368,36,"0","Прочее","st36.007","Установка, замена, заправка помп для лекарственных препаратов",2.3199999999999998,3.536,null,1,"не применяется","не применяется","Таблица 4"]
[369,36,"0","Прочее","st36.008","Интенсивная терапия пациентов с нейрогенными нарушениями жизненно важных функций, нуждающихся в их длительном искусственном замещении",18.149999999999999,3.536,null,1,"Таблица 3","Таблица 3","Таблица 4"]
[370,36,"0","Прочее","st36.009","Реинфузия аутокрови",2.0499999999999998,3.536,null,1,"не применяется","не применяется","Таблица 4"]
[371,36,"0","Прочее","st36.010","Баллонная внутриаортальная контрпульсация",7.81,3.536,null,1,"не применяется","не применяется","Таблица 4"]
[372,36,"0","Прочее","st36.011","Экстракорпоральная мембранная оксигенация",40,3.536,0.2722,1,"не применяется","не применяется","Таблица 4"]
[373,36,"0","Прочее","st36.012","Злокачественное новообразование без специального противоопухолевого лечения",0.5,3.536,null,1,"Таблица 3","Таблица 3","Таблица 4"]
[374,36,"0","Прочее","st36.013","Проведение антимикробной терапии инфекций, вызванных полирезистентными микроорганизмами (уровень 1)",1.67,3.536,0,1,"Таблица 3","Таблица 3","Таблица 4"]
[375,36,"0","Прочее","st36.014","Проведение антимикробной терапии инфекций, вызванных полирезистентными микроорганизмами (уровень 2)",3.23,3.536,0,1,"Таблица 3","Таблица 3","Таблица 4"]
[376,36,"0","Прочее","st36.015","Проведение антимикробной терапии инфекций, вызванных полирезистентными микроорганизмами (уровень 3)",9.91,3.536,0,1,"Таблица 3","Таблица 3","Таблица 4"]
[377,36,"0","Прочее","st36.024","Радиойодтерапия",2.46,3.536,0.70660000000000001,1,"не применяется","не применяется","Таблица 4"]
[378,36,"0","Прочее","st36.025","Проведение иммунизации против респираторно-синцитиальной вирусной инфекции (уровень 1)",1.52,3.536,5.8500000000000003E-2,1,"Таблица 3","Таблица 3","Таблица 4"]
[379,36,"0","Прочее","st36.026","Проведение иммунизации против респираторно-синцитиальной вирусной инфекции (уровень 2)",3.24,3.536,4.58E-2,1,"Таблица 3","Таблица 3","Таблица 4"]
[380,36,"0","Прочее","st36.027","Лечение с применением генно-инженерных биологических препаратов и селективных иммунодепрессантов (инициация)",3.17,3.536,0.34499999999999997,1,"не применяется","не применяется","Таблица 4"]
[381,36,"0","Прочее","st36.028","Лечение с применением генно-инженерных биологических препаратов и селективных иммунодепрессантов (уровень 1)",0.25,3.536,0.73209999999999997,1,"не применяется","не применяется","Таблица 4"]
[382,36,"0","Прочее","st36.029","Лечение с применением генно-инженерных биологических препаратов и селективных иммунодепрессантов (уровень 2)",0.33,3.536,0.55979999999999996,1,"не применяется","не применяется","Таблица 4"]
[383,36,"0","Прочее","st36.030","Лечение с применением генно-инженерных биологических препаратов и селективных иммунодепрессантов (уровень 3)",0.4,3.536,0.46889999999999998,1,"не применяется","не применяется","Таблица 4"]
[384,36,"0","Прочее","st36.031","Лечение с применением генно-инженерных биологических препаратов и селективных иммунодепрессантов (уровень 4)",0.52,3.536,0.35899999999999999,1,"не применяется","не применяется","Таблица 4"]
[385,36,"0","Прочее","st36.032","Лечение с применением генно-инженерных биологических препаратов и селективных иммунодепрессантов (уровень 5)",0.65,3.536,0.28649999999999998,1,"не применяется","не применяется","Таблица 4"]
[386,36,"0","Прочее","st36.033","Лечение с применением генно-инженерных биологических препаратов и селективных иммунодепрессантов (уровень 6)",0.88,3.536,0.2107,1,"не применяется","не применяется","Таблица 4"]
[387,36,"0","Прочее","st36.034","Лечение с применением генно-инженерных биологических препаратов и селективных иммунодепрессантов (уровень 7)",1.0900000000000001,3.536,0.17050000000000001,1,"не применяется","не применяется","Таблица 4"]
[388,36,"0","Прочее","st36.035","Лечение с применением генно-инженерных биологических препаратов и селективных иммунодепрессантов (уровень 8)",1.28,3.536,0.1457,1,"не применяется","не применяется","Таблица 4"]
[389,36,"0","Прочее","st36.036","Лечение с применением генно-инженерных биологических препаратов и селективных иммунодепрессантов (уровень 9)",1.58,3.536,0.1177,1,"не применяется","не применяется","Таблица 4"]
[390,36,"0","Прочее","st36.037","Лечение с применением генно-инженерных биологических препаратов и селективных иммунодепрессантов (уровень 10)",1.79,3.536,0.10390000000000001,1,"не применяется","не применяется","Таблица 4"]
[391,36,"0","Прочее","st36.038","Лечение с применением генно-инженерных биологических препаратов и селективных иммунодепрессантов (уровень 11)",2.21,3.536,8.43E-2,1,"не применяется","не применяется","Таблица 4"]
[392,36,"0","Прочее","st36.039","Лечение с применением генно-инженерных биологических препаратов и селективных иммунодепрессантов (уровень 12)",3,3.536,6.2100000000000002E-2,1,"не применяется","не применяется","Таблица 4"]
[393,36,"0","Прочее","st36.040","Лечение с применением генно-инженерных биологических препаратов и селективных иммунодепрессантов (уровень 13)",4.34,3.536,4.2900000000000001E-2,1,"не применяется","не применяется","Таблица 4"]
[394,36,"0","Прочее","st36.041","Лечение с применением генно-инженерных биологических препаратов и селективных иммунодепрессантов (уровень 14)",5.39,3.536,3.4599999999999999E-2,1,"не применяется","не применяется","Таблица 4"]
[395,36,"0","Прочее","st36.042","Лечение с применением генно-инженерных биологических препаратов и селективных иммунодепрессантов (уровень 15)",6.72,3.536,2.7799999999999998E-2,1,"не применяется","не применяется","Таблица 4"]
[396,36,"0","Прочее","st36.043","Лечение с применением генно-инженерных биологических препаратов и селективных иммунодепрессантов (уровень 16)",10.11,3.536,1.84E-2,1,"не применяется","не применяется","Таблица 4"]
[397,36,"0","Прочее","st36.044","Лечение с применением генно-инженерных биологических препаратов и селективных иммунодепрессантов (уровень 17)",20.34,3.536,9.1999999999999998E-3,1,"не применяется","не применяется","Таблица 4"]
[398,36,"0","Прочее","st36.045","Лечение с применением генно-инженерных биологических препаратов и селективных иммунодепрессантов (уровень 18)",21.93,3.536,8.5000000000000006E-3,1,"не применяется","не применяется","Таблица 4"]
[399,36,"0","Прочее","st36.046","Лечение с применением генно-инженерных биологических препаратов и селективных иммунодепрессантов (уровень 19)",42.61,3.536,4.4000000000000003E-3,1,"не применяется","не применяется","Таблица 4"]
[400,36,"0","Прочее","st36.047","Лечение с применением генно-инженерных биологических препаратов и селективных иммунодепрессантов (уровень 20)",87.15,3.536,2.0999999999999999E-3,1,"не применяется","не применяется","Таблица 4"]
[401,37,"158","Медицинская реабилитация","st37.001","Медицинская реабилитация пациентов с заболеваниями центральной нервной системы (3 балла по ШРМ)",1.53,3.536,null,1.1180000000000001,"Таблица 3","Таблица 3","Таблица 4"]
[402,37,"158","Медицинская реабилитация","st37.002","Медицинская реабилитация пациентов с заболеваниями центральной нервной системы (4 балла по ШРМ)",3.4,3.536,null,1.1180000000000001,"Таблица 3","Таблица 3","Таблица 4"]
[403,37,"158","Медицинская реабилитация","st37.003","Медицинская реабилитация пациентов с заболеваниями центральной нервной системы (5 баллов по ШРМ)",4.8600000000000003,3.536,null,1.1180000000000001,"Таблица 3","Таблица 3","Таблица 4"]
[404,37,"158","Медицинская реабилитация","st37.004","Медицинская реабилитация пациентов с заболеваниями центральной нервной системы (6 баллов по ШРМ)",8.6,3.536,null,1.1180000000000001,"не применяется","не применяется","Таблица 4"]
[405,37,"158","Медицинская реабилитация","st37.005","Медицинская реабилитация пациентов с заболеваниями опорно-двигательного аппарата и периферической нервной системы (3 балла по ШРМ)",1.24,3.536,null,1.1180000000000001,"Таблица 3","Таблица 3","Таблица 4"]
[406,37,"158","Медицинская реабилитация","st37.006","Медицинская реабилитация пациентов с заболеваниями опорно-двигательного аппарата и периферической нервной системы (4 балла по ШРМ)",2.62,3.536,null,1.1180000000000001,"Таблица 3","Таблица 3","Таблица 4"]
[407,37,"158","Медицинская реабилитация","st37.007","Медицинская реабилитация пациентов с заболеваниями опорно-двигательного аппарата и периферической нервной системы (5 баллов по ШРМ)",3.93,3.536,null,1.1180000000000001,"Таблица 3","Таблица 3","Таблица 4"]
[408,37,"158","Медицинская реабилитация","st37.008","Медицинская кардиореабилитация (3 балла по ШРМ)",1.02,3.536,null,1.1180000000000001,"Таблица 3","Таблица 3","Таблица 4"]
[409,37,"158","Медицинская реабилитация","st37.009","Медицинская кардиореабилитация (4 балла по ШРМ)",1.38,3.536,null,1.1180000000000001,"Таблица 3","Таблица 3","Таблица 4"]
[410,37,"158","Медицинская реабилитация","st37.010","Медицинская кардиореабилитация (5 баллов по ШРМ)",2,3.536,null,1.1180000000000001,"Таблица 3","Таблица 3","Таблица 4"]
[411,37,"158","Медицинская реабилитация","st37.011","Медицинская реабилитация при других соматических заболеваниях (3 балла по ШРМ)",0.59,3.536,null,1.1180000000000001,"Таблица 3","Таблица 3","Таблица 4"]
[412,37,"158","Медицинская реабилитация","st37.012","Медицинская реабилитация при других соматических заболеваниях (4 балла по ШРМ)",0.84,3.536,null,1.1180000000000001,"Таблица 3","Таблица 3","Таблица 4"]
[413,37,"158","Медицинская реабилитация","st37.013","Медицинская реабилитация при других соматических заболеваниях (5 баллов по ШРМ)",1.17,3.536,null,1.1180000000000001,"Таблица 3","Таблица 3","Таблица 4"]
[414,37,"158","Медицинская реабилитация","st37.014","Медицинская реабилитация детей, перенесших заболевания перинатального периода",1.5,3.536,null,1.1180000000000001,"Таблица 3","Таблица 3","Таблица 4"]
[415,37,"158","Медицинская реабилитация","st37.015","Медицинская реабилитация детей с нарушениями слуха без замены речевого процессора системы кохлеарной имплантации",1.8,3.536,null,1.1180000000000001,"Таблица 3","Таблица 3","Таблица 4"]
[416,37,"158","Медицинская реабилитация","st37.016","Медицинская реабилитация детей с онкологическими, гематологическими и иммунологическими заболеваниями в тяжелых формах продолжительного течения",4.8099999999999996,3.536,null,1.1180000000000001,"Таблица 3","Таблица 3","Таблица 4"]
[417,37,"158","Медицинская реабилитация","st37.017","Медицинская реабилитация детей с поражениями центральной нервной системы",2.75,3.536,null,1.1180000000000001,"Таблица 3","Таблица 3","Таблица 4"]
[418,37,"158","Медицинская реабилитация","st37.018","Медицинская реабилитация детей, после хирургической коррекции врожденных пороков развития органов и систем",2.35,3.536,null,1.1180000000000001,"Таблица 3","Таблица 3","Таблица 4"]
[419,37,"158","Медицинская реабилитация","st37.019","Медицинская реабилитация после онкоортопедических операций",1.44,3.536,null,1.1180000000000001,"Таблица 3","Таблица 3","Таблица 4"]
[420,37,"158","Медицинская реабилитация","st37.020","Медицинская реабилитация по поводу постмастэктомического синдрома в онкологии",1.24,3.536,null,1.1180000000000001,"Таблица 3","Таблица 3","Таблица 4"]
[421,37,"158","Медицинская реабилитация","st37.021","Медицинская реабилитация после перенесенной коронавирусной инфекции COVID-19 (3 балла по ШРМ)",1.08,3.536,null,1.1180000000000001,"Таблица 3","Таблица 3","Таблица 4"]
[422,37,"158","Медицинская реабилитация","st37.022","Медицинская реабилитация после перенесенной коронавирусной инфекции COVID-19 (4 балла по ШРМ)",1.61,3.536,null,1.1180000000000001,"Таблица 3","Таблица 3","Таблица 4"]
[423,37,"158","Медицинская реабилитация","st37.023","Медицинская реабилитация после перенесенной коронавирусной инфекции COVID-19 (5 баллов по ШРМ)",2.15,3.536,null,1.1180000000000001,"Таблица 3","Таблица 3","Таблица 4"]
[424,37,"158","Медицинская реабилитация","st37.024","Продолжительная медицинская реабилитация пациентов с заболеваниями центральной нервной системы",7.29,3.536,null,1.1180000000000001,"не применяется","не применяется","Таблица 4"]
[425,37,"158","Медицинская реабилитация","st37.025","Продолжительная медицинская реабилитация пациентов с заболеваниями опорно-двигательного аппарата и периферической нервной системы",6.54,3.536,null,1.1180000000000001,"не применяется","не применяется","Таблица 4"]
[426,37,"158","Медицинская реабилитация","st37.026","Продолжительная медицинская реабилитация пациентов с заболеваниями центральной нервной системы и с заболеваниями опорно-двигательного аппарата и периферической нервной системы (сестринский уход)",3.86,3.536,null,1.1180000000000001,"не применяется","не применяется","Таблица 4"]
[427,38,14,"Гериатрия","st38.001","Соматические заболевания, осложненные старческой астенией",1.5,3.536,null,1,"Таблица 3","Таблица 3","Таблица 4"]
[]
["Стоимость одного случая госпитализации в стационаре (ССксг) по КСГ (за исключением КСГ, в составе которых Программой установлены доли заработной платы и прочих расходов) определяется по следующей формуле:"]
[null,"  ССксг=БС*КД*КЗксг*КСксг*КУСмо+БС*КД*КСЛП"]
[]
["<*>Стоимость одного случая госпитализации по КСГ, в составе которых Программой установлена доля заработной платы и прочих расходов, определяется по следующей формуле:"]
[null,"ССксг=БС х КЗксг х ((1-Дзп) + Дзп х КСксг х КУСмо х КД) + БС х КД<**> х КСЛП;"]
[]
[" <**> КД не применяется для КСЛП «проведение сопроводительной лекарственной терапии при злокачественных новообразованиях у взрослых в соответствии с клиническими рекомендациями» (равно единице)"]

{"sheet":"Таблица 2_КСГ по ДС","index":1,"n_rows":226,"n_cols":13,"rows_kept":226,"cut":false,"hidden":false,"merged":[[6,0,6,12],[7,0,7,5],[9,6,10,6],[9,9,10,9],[9,10,10,10],[9,8,10,8],[9,0,11,0],[9,1,11,1],[9,2,11,2],[9,3,11,3],[9,4,11,4],[9,5,11,5],[9,7,10,7],[219,0,219,12],[222,0,222,12],[225,0,225,12],[217,0,217,6],[9,11,10,11],[9,12,10,12]]}
[{"$nulls":12},{"$f":"'Таблица 1_КСГ по КС '!M1","v":"Приложение № 8"}]
[{"$nulls":12},{"$f":"'Таблица 1_КСГ по КС '!M2","v":"к Дополнительному соглашению № 4"}]
[{"$nulls":12},{"$f":"'Таблица 1_КСГ по КС '!M3","v":" от \"19\" июля 2023 года"}]
[{"$nulls":12},{"$f":"'Таблица 1_КСГ по КС '!M4","v":0}]
[]
[{"$nulls":12},"Таблица 2"]
[" Данные для расчёта тарифов на оплату медицинской помощи, оказанной в условиях дневного стационара по КСГ "]
["БАЗОВАЯ СТАВКА ФИНАНСИРОВАНИЯ, ВКЛЮЧЕННАЯ В КПГ/КСГ  (БС) - ",{"$nulls":5},18616.55,"рублей"]
[]
["№ п/п","Код профиля","Код профиля (V002)","Профиль","КСГ","Наименование КСГ","Коэффициент относительной затратоёмкости КПГ (КЗксг)","Коэффициент дифференциации ","Доля з/платы и прочих расходов <**>","Коэффициент специфики оказания медицинской помощи","Коэффициент уровня оказания стационарной медицинской помощи   ","Коэффициент подуровня оказания стационарной медицинской помощи   для организаций i уровня","Коэффициент сложности лечения пациента"]
[]
[{"$nulls":6},"КЗксг","КД"," Дзп","КСксг","  (КУСксг)       ","КУСксгi","КСЛП"]
[1,2,3,4,5,6,7,8,9,10,11,12,13]
[1,2,136,"Акушерство и гинекология","ds02.001","Осложнения беременности, родов, послеродового периода",0.83,3.536,null,1,"Таблица 3","Таблица 3","Таблица 4"]
[2,2,136,"Акушерство и гинекология","ds02.002","Болезни женских половых органов",0.66,{"$f":"$H$14","v":3.536},null,1,"Таблица 3","Таблица 3","Таблица 4"]
[3,2,136,"Акушерство и гинекология","ds02.003","Операции на женских половых органах (уровень 1)",0.71,{"$f":"$H$14","v":3.536},null,1,"Таблица 3","Таблица 3","Таблица 4"]
[4,2,136,"Акушерство и гинекология","ds02.004","Операции на женских половых органах (уровень 2)",1.06,3.536,null,1,"Таблица 3","Таблица 3","Таблица 4"]
[5,2,184,"Акушерство и гинекология","ds02.006","Искусственное прерывание беременности (аборт)",0.33,3.536,null,1,"Таблица 3","Таблица 3","Таблица 4"]
[6,2,184,"Акушерство и гинекология","ds02.007","Аборт медикаментозный",0.38,3.536,null,1,"Таблица 3","Таблица 3","Таблица 4"]
[7,2,136,"Акушерство и гинекология","ds02.008","Экстракорпоральное оплодотворение (уровень 1)",3.26,3.536,0.16400000000000001,1,"Таблица 3","Таблица 3","Таблица 4"]
[8,2,136,"Акушерство и гинекология","ds02.009","Экстракорпоральное оплодотворение (уровень 2)",5.99,3.536,0.2087,1,"Таблица 3","Таблица 3","Таблица 4"]
[9,2,136,"Акушерство и гинекология","ds02.010","Экстракорпоральное оплодотворение (уровень 3)",9.74,3.536,0.1827,1,"Таблица 3","Таблица 3","Таблица 4"]
[10,2,136,"Акушерство и гинекология","ds02.011","Экстракорпоральное оплодотворение (уровень 4)",10.65,3.536,0.1759,1,"Таблица 3","Таблица 3","Таблица 4"]
[11,3,4,"Аллергология и иммунология","ds03.001","Нарушения с вовлечением иммунного механизма",0.98,3.536,null,1,"Таблица 3","Таблица 3","Таблица 4"]
[12,4,11,"Гастроэнтерология","ds04.001","Болезни органов пищеварения, взрослые",0.89,3.536,null,1,"Таблица 3","Таблица 3","Таблица 4"]
[13,5,12,"Гематология","ds05.001","Болезни крови (уровень 1)",0.91,3.536,null,1,"Таблица 3","Таблица 3","Таблица 4"]
[14,5,12,"Гематология","ds05.002","Болезни крови (уровень 2)",2.41,3.536,null,1,"Таблица 3","Таблица 3","Таблица 4"]
[15,5,12,"Гематология","ds05.005","Лекарственная терапия при доброкачественных заболеваниях крови и пузырном заносе",3.73,3.536,null,1,"Таблица 3","Таблица 3","Таблица 4"]
[16,6,16,"Дерматовенерология","ds06.002","Лечение дерматозов с применением наружной терапии",0.35,3.536,0.97440000000000004,1,"Таблица 3","Таблица 3","Таблица 4"]
[17,6,16,"Дерматовенерология","ds06.003","Лечение дерматозов с применением наружной терапии, физиотерапии, плазмафереза",0.97,3.536,0.96299999999999997,1,"Таблица 3","Таблица 3","Таблица 4"]
[18,6,16,"Дерматовенерология","ds06.004","Лечение дерматозов с применением наружной и системной терапии",0.97,3.536,0.98270000000000002,1,"Таблица 3","Таблица 3","Таблица 4"]
[19,6,16,"Дерматовенерология","ds06.005","Лечение дерматозов с применением наружной терапии и фототерапии",1.95,3.536,0.98199999999999998,1,"Таблица 3","Таблица 3","Таблица 4"]
[20,7,17,"Детская кардиология","ds07.001","Болезни системы кровообращения, дети",0.98,3.536,null,1,"Таблица 3","Таблица 3","Таблица 4"]
[21,8,18,"Детская онкология","ds08.001","Лекарственная терапия при злокачественных новообразованиях других локализаций (кроме лимфоидной и кроветворной тканей), дети",7.95,3.536,null,1,"Таблица 3","Таблица 3","Таблица 4"]
[22,8,18,"Детская онкология","ds08.002","Лекарственная терапия при остром лейкозе, дети",14.23,3.536,null,1,"Таблица 3","Таблица 3","Таблица 4"]
[23,8,18,"Детская онкология","ds08.003","Лекарственная терапия при других злокачественных новообразованиях лимфоидной и кроветворной тканей, дети",10.34,3.536,null,1,"Таблица 3","Таблица 3","Таблица 4"]
[24,9,19,"Детская урология-андрология","ds09.001","Операции на мужских половых органах, дети",1.38,3.536,null,1,"Таблица 3","Таблица 3","Таблица 4"]
[25,9,19,"Детская урология-андрология","ds09.002","Операции на почке и мочевыделительной системе, дети",2.09,3.536,null,1,"Таблица 3","Таблица 3","Таблица 4"]
[26,10,20,"Детская хирургия","ds10.001","Операции по поводу грыж, дети",1.6,3.536,null,1,"Таблица 3","Таблица 3","Таблица 4"]
[27,11,21,"Детская эндокринология","ds11.001","Сахарный диабет, дети",1.49,3.536,null,1,"Таблица 3","Таблица 3","Таблица 4"]
[28,11,21,"Детская эндокринология","ds11.002","Другие болезни эндокринной системы, дети",1.36,3.536,null,1,"Таблица 3","Таблица 3","Таблица 4"]
[29,12,"28","Инфекционные болезни","ds12.001","Вирусный гепатит B хронический, лекарственная терапия",2.75,3.536,null,1,"Таблица 3","Таблица 3","Таблица 4"]
[30,12,"28","Инфекционные болезни","ds12.005","Другие вирусные гепатиты",0.97,3.536,null,1,"Таблица 3","Таблица 3","Таблица 4"]
[31,12,"28","Инфекционные болезни","ds12.006","Инфекционные и паразитарные болезни, взрослые",1.1599999999999999,3.536,null,1,"Таблица 3","Таблица 3","Таблица 4"]
[32,12,"28","Инфекционные болезни","ds12.007","Инфекционные и паразитарные болезни, дети",0.97,3.536,null,1,"Таблица 3","Таблица 3","Таблица 4"]
[33,12,"28","Инфекционные болезни","ds12.008","Респираторные инфекции верхних дыхательных путей, взрослые",0.52,3.536,null,1,"Таблица 3","Таблица 3","Таблица 4"]
[34,12,"28","Инфекционные болезни","ds12.009","Респираторные инфекции верхних дыхательных путей, дети",0.65,3.536,null,1,"Таблица 3","Таблица 3","Таблица 4"]
[35,12,"28","Инфекционные болезни","ds12.012","Лечение хронического вирусного гепатита C (уровень 1)",6,3.536,0.10879999999999999,1,"Таблица 3","Таблица 3","Таблица 4"]
[36,12,"28","Инфекционные болезни","ds12.013","Лечение хронического вирусного гепатита C (уровень 2)",9.07,3.536,7.3599999999999999E-2,1,"Таблица 3","Таблица 3","Таблица 4"]
[37,12,"28","Инфекционные болезни","ds12.014","Лечение хронического вирусного гепатита C (уровень 3)",12.91,3.536,5.1700000000000003E-2,1,"Таблица 3","Таблица 3","Таблица 4"]
[38,12,"28","Инфекционные болезни","ds12.015","Лечение хронического вирусного гепатита C (уровень 4)",18.77,3.536,3.5700000000000003E-2,1,"Таблица 3","Таблица 3","Таблица 4"]
[39,13,29,"Кардиология","ds13.001","Болезни системы кровообращения, взрослые",0.8,3.536,null,0.83199999999999996,"Таблица 3","Таблица 3","Таблица 4"]
[40,13,29,"Кардиология","ds13.002","Болезни системы кровообращения с применением инвазивных методов",3.39,3.536,null,0.83199999999999996,"Таблица 3","Таблица 3","Таблица 4"]
[41,14,30,"Колопроктология","ds14.001","Операции на кишечнике и анальной области (уровень 1)",1.53,3.536,null,1,"Таблица 3","Таблица 3","Таблица 4"]
[42,14,30,"Колопроктология","ds14.002","Операции на кишечнике и анальной области (уровень 2)",3.17,3.536,null,1,"Таблица 3","Таблица 3","Таблица 4"]
[43,15,53,"Неврология","ds15.001","Болезни нервной системы, хромосомные аномалии",0.98,3.536,null,0.83199999999999996,"Таблица 3","Таблица 3","Таблица 4"]
[44,15,53,"Неврология","ds15.002","Неврологические заболевания, лечение с применением ботулотоксина (уровень 1)",1.75,3.536,null,0.83199999999999996,"Таблица 3","Таблица 3","Таблица 4"]
[45,15,53,"Неврология","ds15.003","Неврологические заболевания, лечение с применением ботулотоксина (уровень 2)",2.89,3.536,null,0.83199999999999996,"Таблица 3","Таблица 3","Таблица 4"]
[46,16,54,"Нейрохирургия","ds16.001","Болезни и травмы позвоночника, спинного мозга, последствия внутричерепной травмы, сотрясение головного мозга",0.94,3.536,null,0.83199999999999996,"Таблица 3","Таблица 3","Таблица 4"]
[47,16,54,"Нейрохирургия","ds16.002","Операции на периферической нервной системе",2.57,3.536,null,0.83199999999999996,"Таблица 3","Таблица 3","Таблица 4"]
[48,17,55,"Неонатология","ds17.001","Нарушения, возникшие в перинатальном периоде",1.79,3.536,null,1,"Таблица 3","Таблица 3","Таблица 4"]
[49,18,56,"Нефрология (без диализа)","ds18.001","Гломерулярные болезни, почечная недостаточность (без диализа)",1.6,3.536,null,1,"Таблица 3","Таблица 3","Таблица 4"]
[50,18,56,"Нефрология (без диализа)","ds18.002","Лекарственная терапия у пациентов, получающих диализ",3.25,3.536,null,1,"Таблица 3","Таблица 3","Таблица 4"]
[51,18,56,"Нефрология (без диализа)","ds18.003","Формирование, имплантация, удаление, смена доступа для диализа",3.18,3.536,null,1,"Таблица 3","Таблица 3","Таблица 4"]
[52,18,56,"Нефрология (без диализа)","ds18.004","Другие болезни почек",0.8,3.536,null,1,"Таблица 3","Таблица 3","Таблица 4"]
[53,19,60,"Онкология","ds19.016","Операции при злокачественных новообразованиях кожи (уровень 1)",2.35,3.536,null,1,"Таблица 3","Таблица 3","Таблица 4"]
[54,19,60,"Онкология","ds19.017","Операции при злокачественных новообразованиях кожи (уровень 2)",2.48,3.536,null,1,"Таблица 3","Таблица 3","Таблица 4"]
[55,19,60,"Онкология","ds19.028","Установка, замена порт-системы (катетера) для лекарственной терапии злокачественных новообразований",2.17,3.536,null,1,"Таблица 3","Таблица 3","Таблица 4"]
[57,19,60,"Онкология","ds19.033","Госпитализация в диагностических целях с проведением молекулярно-генетического и (или) иммуногистохимического исследования или иммунофенотипирования",2.44,3.536,null,1,"Таблица 3","Таблица 3","Таблица 4"]
[58,19,60,"Онкология","ds19.050","Лучевая терапия (уровень 1)",0.74,{"$f":"$H$14","v":3.536},null,1,"Таблица 3","Таблица 3","Таблица 4"]
[59,19,60,"Онкология","ds19.051","Лучевая терапия (уровень 2)",1.44,3.536,null,1,"Таблица 3","Таблица 3","Таблица 4"]
[60,19,60,"Онкология","ds19.052","Лучевая терапия (уровень 3)",2.2200000000000002,3.536,null,1,"Таблица 3","Таблица 3","Таблица 4"]
[61,19,60,"Онкология","ds19.053","Лучевая терапия (уровень 4)",2.93,3.536,null,1,"Таблица 3","Таблица 3","Таблица 4"]
[62,19,60,"Онкология","ds19.054","Лучевая терапия (уровень 5)",3.14,3.536,null,1,"Таблица 3","Таблица 3","Таблица 4"]
[63,19,60,"Онкология","ds19.055","Лучевая терапия (уровень 6)",3.8,3.536,null,1,"Таблица 3","Таблица 3","Таблица 4"]
[64,19,60,"Онкология","ds19.056","Лучевая терапия (уровень 7)",4.7,3.536,null,1,"Таблица 3","Таблица 3","Таблица 4"]
[65,19,60,"Онкология","ds19.057","Лучевая терапия (уровень 8)",26.65,3.536,null,1,"Таблица 3","Таблица 3","Таблица 4"]
[66,19,60,"Онкология","ds19.058","Лучевая терапия в сочетании с лекарственной терапией (уровень 1)",4.09,3.536,0.78380000000000005,1,"Таблица 3","Таблица 3","Таблица 4"]
[67,19,60,"Онкология","ds19.060","Лучевая терапия в сочетании с лекарственной терапией (уровень 3)",4.96,3.536,0.82640000000000002,1,"Таблица 3","Таблица 3","Таблица 4"]
[68,19,60,"Онкология","ds19.061","Лучевая терапия в сочетании с лекарственной терапией (уровень 4)",13.27,3.536,0.31859999999999999,1,"Таблица 3","Таблица 3","Таблица 4"]
[69,19,60,"Онкология","ds19.062","Лучевая терапия в сочетании с лекарственной терапией (уровень 5)",25.33,3.536,0.16689999999999999,1,"Таблица 3","Таблица 3","Таблица 4"]
[70,19,60,"Онкология","ds19.063","ЗНО лимфоидной и кроветворной тканей без специального противоопухолевого лечения (уровень 1)",0.21,3.536,null,1,"Таблица 3","Таблица 3","Таблица 4"]
[71,19,60,"Онкология","ds19.064","ЗНО лимфоидной и кроветворной тканей без специального противоопухолевого лечения (уровень 2)",0.94,3.536,null,1,"Таблица 3","Таблица 3","Таблица 4"]
[72,19,60,"Онкология","ds19.065","ЗНО лимфоидной и кроветворной тканей без специального противоопухолевого лечения (уровень 3)",2.29,3.536,null,1,"Таблица 3","Таблица 3","Таблица 4"]
[73,19,60,"Онкология","ds19.066","ЗНО лимфоидной и кроветворной тканей без специального противоопухолевого лечения (уровень 4)",4.22,3.536,null,1,"Таблица 3","Таблица 3","Таблица 4"]
[74,19,60,"Онкология","ds19.067","ЗНО лимфоидной и кроветворной тканей, лекарственная терапия, взрослые (уровень 1)",0.37,3.536,0.621,1,"Таблица 3","Таблица 3","Таблица 4"]
[75,19,60,"Онкология","ds19.068","ЗНО лимфоидной и кроветворной тканей, лекарственная терапия, взрослые (уровень 2)",1.64,3.536,0.621,1,"Таблица 3","Таблица 3","Таблица 4"]
[76,19,60,"Онкология","ds19.069","ЗНО лимфоидной и кроветворной тканей, лекарственная терапия, взрослые (уровень 3)",3.67,3.536,0.621,1,"Таблица 3","Таблица 3","Таблица 4"]
[77,19,60,"Онкология","ds19.070","ЗНО лимфоидной и кроветворной тканей, лекарственная терапия, взрослые (уровень 4)",6.58,3.536,0.621,1,"Таблица 3","Таблица 3","Таблица 4"]
[78,19,60,"Онкология","ds19.071","ЗНО лимфоидной и кроветворной тканей, лекарственная терапия с применением отдельных препаратов (по перечню), взрослые (уровень 1)",4.04,3.536,6.0199999999999997E-2,1,"Таблица 3","Таблица 3","Таблица 4"]
[79,19,60,"Онкология","ds19.072","ЗНО лимфоидной и кроветворной тканей, лекарственная терапия с применением отдельных препаратов (по перечню), взрослые (уровень 2)",5.28,3.536,0.19120000000000001,1,"Таблица 3","Таблица 3","Таблица 4"]
[80,19,60,"Онкология","ds19.073","ЗНО лимфоидной и кроветворной тканей, лекарственная терапия с применением отдельных препаратов (по перечню), взрослые (уровень 3)",7.46,3.536,0.31709999999999999,1,"Таблица 3","Таблица 3","Таблица 4"]
[81,19,60,"Онкология","ds19.074","ЗНО лимфоидной и кроветворной тканей, лекарственная терапия с применением отдельных препаратов (по перечню), взрослые (уровень 4)",11,3.536,0.41489999999999999,1,"Таблица 3","Таблица 3","Таблица 4"]
[82,19,60,"Онкология","ds19.075","ЗНО лимфоидной и кроветворной тканей, лекарственная терапия с применением отдельных препаратов (по перечню), взрослые (уровень 5)",30.73,3.536,6.4999999999999997E-3,1,"Таблица 3","Таблица 3","Таблица 4"]
[83,19,60,"Онкология","ds19.076","ЗНО лимфоидной и кроветворной тканей, лекарственная терапия с применением отдельных препаратов (по перечню), взрослые (уровень 6)",31.73,3.536,2.5899999999999999E-2,1,"Таблица 3","Таблица 3","Таблица 4"]
[84,19,60,"Онкология","ds19.077","ЗНО лимфоидной и кроветворной тканей, лекарственная терапия с применением отдельных препаратов (по перечню), взрослые (уровень 7)",34.5,3.536,7.3499999999999996E-2,1,"Таблица 3","Таблица 3","Таблица 4"]
[85,19,60,"Онкология","ds19.078","ЗНО лимфоидной и кроветворной тканей, лекарственная терапия с применением отдельных препаратов (по перечню), взрослые (уровень 8)",36.479999999999997,3.536,0.1033,1,"Таблица 3","Таблица 3","Таблица 4"]
[86,19,60,"Онкология","ds19.079","Лучевые повреждения",2.62,3.536,null,1,"Таблица 3","Таблица 3","Таблица 4"]
[87,19,60,"Онкология","ds19.097","Лекарственная терапия при злокачественных новообразованиях (кроме лимфоидной и кроветворной тканей), взрослые (уровень 1)",0.39,3.536,0.28920000000000001,1,"Таблица 3","Таблица 3","Таблица 4"]
[88,19,60,"Онкология","ds19.098","Лекарственная терапия при злокачественных новообразованиях (кроме лимфоидной и кроветворной тканей), взрослые (уровень 2)",1.06,3.536,0.13189999999999999,1,"Таблица 3","Таблица 3","Таблица 4"]
[89,19,60,"Онкология","ds19.099","Лекарственная терапия при злокачественных новообразованиях (кроме лимфоидной и кроветворной тканей), взрослые (уровень 3)",1.64,3.536,0.14849999999999999,1,"Таблица 3","Таблица 3","Таблица 4"]
[90,19,60,"Онкология","ds19.100","Лекарственная терапия при злокачественных новообразованиях (кроме лимфоидной и кроветворной тканей), взрослые (уровень 4)",2.33,3.536,0.28770000000000001,1,"Таблица 3","Таблица 3","Таблица 4"]
[91,19,60,"Онкология","ds19.101","Лекарственная терапия при злокачественных новообразованиях (кроме лимфоидной и кроветворной тканей), взрослые (уровень 5)",3.51,3.536,0.13389999999999999,1,"Таблица 3","Таблица 3","Таблица 4"]
[92,19,60,"Онкология","ds19.102","Лекарственная терапия при злокачественных новообразованиях (кроме лимфоидной и кроветворной тканей), взрослые (уровень 6)",4.91,3.536,4.8800000000000003E-2,1,"Таблица 3","Таблица 3","Таблица 4"]
[93,19,60,"Онкология","ds19.103","Лекарственная терапия при злокачественных новообразованиях (кроме лимфоидной и кроветворной тканей), взрослые (уровень 7)",6.01,3.536,0.15229999999999999,1,"Таблица 3","Таблица 3","Таблица 4"]
[94,19,60,"Онкология","ds19.104","Лекарственная терапия при злокачественных новообразованиях (кроме лимфоидной и кроветворной тканей), взрослые (уровень 8)",7.09,3.536,0.15060000000000001,1,"Таблица 3","Таблица 3","Таблица 4"]
[95,19,60,"Онкология","ds19.105","Лекарственная терапия при злокачественных новообразованиях (кроме лимфоидной и кроветворной тканей), взрослые (уровень 9)",8.07,3.536,0.1414,1,"Таблица 3","Таблица 3","Таблица 4"]
[96,19,60,"Онкология","ds19.106","Лекарственная терапия при злокачественных новообразованиях (кроме лимфоидной и кроветворной тканей), взрослые (уровень 10)",9.2200000000000006,3.536,0.23119999999999999,1,"Таблица 3","Таблица 3","Таблица 4"]
[97,19,60,"Онкология","ds19.107","Лекарственная терапия при злокачественных новообразованиях (кроме лимфоидной и кроветворной тканей), взрослые (уровень 11)",10.83,3.536,0.20530000000000001,1,"Таблица 3","Таблица 3","Таблица 4"]
[98,19,60,"Онкология","ds19.108","Лекарственная терапия при злокачественных новообразованиях (кроме лимфоидной и кроветворной тканей), взрослые (уровень 12)",13.25,3.536,4.1099999999999998E-2,1,"Таблица 3","Таблица 3","Таблица 4"]
[99,19,60,"Онкология","ds19.109","Лекарственная терапия при злокачественных новообразованиях (кроме лимфоидной и кроветворной тканей), взрослые (уровень 13)",15.43,3.536,9.8400000000000001E-2,1,"Таблица 3","Таблица 3","Таблица 4"]
[100,19,60,"Онкология","ds19.110","Лекарственная терапия при злокачественных новообразованиях (кроме лимфоидной и кроветворной тканей), взрослые (уровень 14)",19.97,3.536,7.2900000000000006E-2,1,"Таблица 3","Таблица 3","Таблица 4"]
[101,19,60,"Онкология","ds19.111","Лекарственная терапия при злокачественных новообразованиях (кроме лимфоидной и кроветворной тканей), взрослые (уровень 15)",24.82,3.536,3.4799999999999998E-2,1,"Таблица 3","Таблица 3","Таблица 4"]
[102,19,60,"Онкология","ds19.112","Лекарственная терапия при злокачественных новообразованиях (кроме лимфоидной и кроветворной тканей), взрослые (уровень 16)",30.78,3.536,5.6399999999999999E-2,1,"Таблица 3","Таблица 3","Таблица 4"]
[103,19,60,"Онкология","ds19.113","Лекарственная терапия при злокачественных новообразованиях (кроме лимфоидной и кроветворной тканей), взрослые (уровень 17)",34.42,3.536,6.6100000000000006E-2,1,"Таблица 3","Таблица 3","Таблица 4"]
[104,19,60,"Онкология","ds19.114","Лекарственная терапия при злокачественных новообразованиях (кроме лимфоидной и кроветворной тканей), взрослые (уровень 18)",45.47,3.536,2.2000000000000001E-3,1,"Таблица 3","Таблица 3","Таблица 4"]
[105,19,60,"Онкология","ds19.115","Лекарственная терапия при злокачественных новообразованиях (кроме лимфоидной и кроветворной тканей), взрослые (уровень 19)",61.22,3.536,3.5999999999999999E-3,1,"Таблица 3","Таблица 3","Таблица 4"]
[106,20,"162","Оториноларингология","ds20.001","Болезни уха, горла, носа",0.74,3.536,null,1,"Таблица 3","Таблица 3","Таблица 4"]
[107,20,"162","Оториноларингология","ds20.002","Операции на органе слуха, придаточных пазухах носа и верхних дыхательных путях (уровень 1)",1.1200000000000001,3.536,null,1,"Таблица 3","Таблица 3","Таблица 4"]
[108,20,"162","Оториноларингология","ds20.003","Операции на органе слуха, придаточных пазухах носа и верхних дыхательных путях (уровень 2)",1.66,3.536,null,1,"Таблица 3","Таблица 3","Таблица 4"]
[109,20,"162","Оториноларингология","ds20.004","Операции на органе слуха, придаточных пазухах носа и верхних дыхательных путях (уровень 3)",2,3.536,null,1,"Таблица 3","Таблица 3","Таблица 4"]
[110,20,"162","Оториноларингология","ds20.005","Операции на органе слуха, придаточных пазухах носа и верхних дыхательных путях (уровень 4)",2.46,3.536,null,1,"Таблица 3","Таблица 3","Таблица 4"]
[111,20,"162","Оториноларингология","ds20.006","Замена речевого процессора",51.86,3.536,2.3E-3,1,"Таблица 3","Таблица 3","Таблица 4"]
[112,21,65,"Офтальмология","ds21.001","Болезни и травмы глаза",0.39,3.536,null,1,"Таблица 3","Таблица 3","Таблица 4"]
[113,21,65,"Офтальмология","ds21.002","Операции на органе зрения (уровень 1)",0.67,3.536,null,1,"Таблица 3","Таблица 3","Таблица 4"]
[114,21,65,"Офтальмология","ds21.003","Операции на органе зрения (уровень 2)",1.0900000000000001,3.536,null,1,"Таблица 3","Таблица 3","Таблица 4"]
[115,21,65,"Офтальмология","ds21.004","Операции на органе зрения (уровень 3)",1.62,3.536,null,1,"Таблица 3","Таблица 3","Таблица 4"]
[116,21,65,"Офтальмология","ds21.005","Операции на органе зрения (уровень 4)",2.0099999999999998,3.536,null,1,"Таблица 3","Таблица 3","Таблица 4"]
[117,21,65,"Офтальмология","ds21.006","Операции на органе зрения (уровень 5)",3.5,3.536,null,1,"Таблица 3","Таблица 3","Таблица 4"]
[118,21,65,"Офтальмология","ds21.007","Операции на органе зрения (факоэмульсификация с имплантацией ИОЛ)",2.04,3.536,0.1032,1,"Таблица 3","Таблица 3","Таблица 4"]
[119,22,"68","Педиатрия","ds22.001","Системные поражения соединительной ткани, артропатии, спондилопатии, дети",2.31,3.536,null,1.165,"Таблица 3","Таблица 3","Таблица 4"]
[120,22,"68","Педиатрия","ds22.002","Болезни органов пищеварения, дети",0.89,3.536,null,1.165,"Таблица 3","Таблица 3","Таблица 4"]
[121,23,"97","Пульмонология","ds23.001","Болезни органов дыхания",0.9,3.536,null,1,"Таблица 3","Таблица 3","Таблица 4"]
[122,24,77,"Ревматология","ds24.001","Системные поражения соединительной ткани, артропатии, спондилопатии, взрослые",1.46,3.536,null,1,"Таблица 3","Таблица 3","Таблица 4"]
[123,25,81,"Сердечно-сосудистая хирургия","ds25.001","Диагностическое обследование сердечно-сосудистой системы",1.84,3.536,null,1,"Таблица 3","Таблица 3","Таблица 4"]
[124,25,81,"Сердечно-сосудистая хирургия","ds25.002","Операции на сосудах (уровень 1)",2.1800000000000002,3.536,null,1,"Таблица 3","Таблица 3","Таблица 4"]
[125,25,81,"Сердечно-сосудистая хирургия","ds25.003","Операции на сосудах (уровень 2)",4.3099999999999996,3.536,null,1,"Таблица 3","Таблица 3","Таблица 4"]
[126,26,86,"Стоматология детская","ds26.001","Болезни полости рта, слюнных желез и челюстей, врожденные аномалии лица и шеи, дети",0.98,3.536,null,1,"Таблица 3","Таблица 3","Таблица 4"]
[127,27,97,"Терапия","ds27.001","Отравления и другие воздействия внешних причин",0.74,3.536,null,1,"Таблица 3","Таблица 3","Таблица 4"]
[128,28,99,"Торакальная хирургия","ds28.001","Операции на нижних дыхательных путях и легочной ткани, органах средостения",1.32,3.536,null,1,"Таблица 3","Таблица 3","Таблица 4"]
[129,29,100,"Травматология и ортопедия","ds29.001","Операции на костно-мышечной системе и суставах (уровень 1)",1.44,3.536,null,1,"Таблица 3","Таблица 3","Таблица 4"]
[130,29,100,"Травматология и ортопедия","ds29.002","Операции на костно-мышечной системе и суставах (уровень 2)",1.69,3.536,null,1,"Таблица 3","Таблица 3","Таблица 4"]
[131,29,100,"Травматология и ортопедия","ds29.003","Операции на костно-мышечной системе и суставах (уровень 3)",2.4900000000000002,3.536,null,1,"Таблица 3","Таблица 3","Таблица 4"]
[132,29,100,"Травматология и ортопедия","ds29.004","Заболевания опорно-двигательного аппарата, травмы, болезни мягких тканей",1.05,3.536,null,1,"Таблица 3","Таблица 3","Таблица 4"]
[133,30,108,"Урология","ds30.001","Болезни, врожденные аномалии, повреждения мочевой системы и мужских половых органов",0.8,3.536,null,1,"Таблица 3","Таблица 3","Таблица 4"]
[134,30,108,"Урология","ds30.002","Операции на мужских половых органах, взрослые (уровень 1)",2.1800000000000002,3.536,null,1,"Таблица 3","Таблица 3","Таблица 4"]
[135,30,108,"Урология","ds30.003","Операции на мужских половых органах, взрослые (уровень 2)",2.58,{"$f":"$H$14","v":3.536},null,1,"Таблица 3","Таблица 3","Таблица 4"]
[136,30,108,"Урология","ds30.004","Операции на почке и мочевыделительной системе, взрослые (уровень 1)",1.97,3.536,null,1,"Таблица 3","Таблица 3","Таблица 4"]
[137,30,108,"Урология","ds30.005","Операции на почке и мочевыделительной системе, взрослые (уровень 2)",2.04,3.536,null,1,"Таблица 3","Таблица 3","Таблица 4"]
[138,30,108,"Урология","ds30.006","Операции на почке и мочевыделительной системе, взрослые (уровень 3)",2.95,3.536,null,1,"Таблица 3","Таблица 3","Таблица 4"]
[139,31,112,"Хирургия","ds31.001","Болезни, новообразования молочной железы",0.89,3.536,null,1,"Таблица 3","Таблица 3","Таблица 4"]
[140,31,112,"Хирургия","ds31.002","Операции на коже, подкожной клетчатке, придатках кожи (уровень 1)",0.75,3.536,null,1,"Таблица 3","Таблица 3","Таблица 4"]
[141,31,112,"Хирургия","ds31.003","Операции на коже, подкожной клетчатке, придатках кожи (уровень 2)",1,3.536,null,1,"Таблица 3","Таблица 3","Таблица 4"]
[142,31,112,"Хирургия","ds31.004","Операции на коже, подкожной клетчатке, придатках кожи (уровень 3)",4.34,3.536,null,1,"Таблица 3","Таблица 3","Таблица 4"]
[143,31,112,"Хирургия","ds31.005","Операции на органах кроветворения и иммунной системы",1.29,3.536,null,1,"Таблица 3","Таблица 3","Таблица 4"]
[144,31,112,"Хирургия","ds31.006","Операции на молочной железе",2.6,3.536,null,1,"Таблица 3","Таблица 3","Таблица 4"]
[145,32,"1","Хирургия (абдоминальная)","ds32.001","Операции на пищеводе, желудке, двенадцатиперстной кишке (уровень 1)",2.11,3.536,null,1,"Таблица 3","Таблица 3","Таблица 4"]
[146,32,"1","Хирургия (абдоминальная)","ds32.002","Операции на пищеводе, желудке, двенадцатиперстной кишке (уровень 2)",3.55,3.536,null,1,"Таблица 3","Таблица 3","Таблица 4"]
[147,32,1,"Хирургия (абдоминальная)","ds32.003","Операции по поводу грыж, взрослые (уровень 1)",1.57,3.536,null,1,"Таблица 3","Таблица 3","Таблица 4"]
[148,32,1,"Хирургия (абдоминальная)","ds32.004","Операции по поводу грыж, взрослые (уровень 2)",2.2599999999999998,3.536,null,1,"Таблица 3","Таблица 3","Таблица 4"]
[149,32,1,"Хирургия (абдоминальная)","ds32.005","Операции по поводу грыж, взрослые (уровень 3)",3.24,3.536,null,1,"Таблица 3","Таблица 3","Таблица 4"]
[150,32,1,"Хирургия (абдоминальная)","ds32.006","Операции на желчном пузыре и желчевыводящих путях",1.7,3.536,null,1,"Таблица 3","Таблица 3","Таблица 4"]
[151,32,1,"Хирургия (абдоминальная)","ds32.007","Другие операции на органах брюшной полости (уровень 1)",2.06,3.536,null,1,"Таблица 3","Таблица 3","Таблица 4"]
[152,32,1,"Хирургия (абдоминальная)","ds32.008","Другие операции на органах брюшной полости (уровень 2)",2.17,3.536,null,1,"Таблица 3","Таблица 3","Таблица 4"]
[153,33,114,"Хирургия (комбустиология)","ds33.001","Ожоги и отморожения",1.1000000000000001,3.536,null,1,"Таблица 3","Таблица 3","Таблица 4"]
[154,34,116,"Челюстно-лицевая хирургия","ds34.001","Болезни полости рта, слюнных желез и челюстей, врожденные аномалии лица и шеи, взрослые",0.88,3.536,null,1,"Таблица 3","Таблица 3","Таблица 4"]
[155,34,116,"Челюстно-лицевая хирургия","ds34.002","Операции на органах полости рта (уровень 1)",0.92,3.536,null,1,"Таблица 3","Таблица 3","Таблица 4"]
[156,34,116,"Челюстно-лицевая хирургия","ds34.003","Операции на органах полости рта (уровень 2)",1.56,3.536,null,1,"Таблица 3","Таблица 3","Таблица 4"]
[157,35,122,"Эндокринология","ds35.001","Сахарный диабет, взрослые",1.08,3.536,null,1,"Таблица 3","Таблица 3","Таблица 4"]
[158,35,122,"Эндокринология","ds35.002","Другие болезни эндокринной системы, новообразования эндокринных желез доброкачественные, in situ, неопределенного и неизвестного характера, расстройства питания, другие нарушения обмена веществ",1.41,3.536,null,1,"Таблица 3","Таблица 3","Таблица 4"]
[159,35,122,"Эндокринология","ds35.003","Кистозный фиброз",2.58,3.536,null,1,"Таблица 3","Таблица 3","Таблица 4"]
[160,35,122,"Эндокринология","ds35.004","Лечение кистозного фиброза с применением ингаляционной антибактериальной терапии",12.27,3.536,null,1,"Таблица 3","Таблица 3","Таблица 4"]
[161,36,0,"Прочее","ds36.001","Комплексное лечение с применением препаратов иммуноглобулина",7.86,3.536,null,1,"Таблица 3","Таблица 3","Таблица 4"]
[162,36,0,"Прочее","ds36.002","Факторы, влияющие на состояние здоровья населения и обращения в учреждения здравоохранения",0.56000000000000005,3.536,null,1,"Таблица 3","Таблица 3","Таблица 4"]
[164,36,0,"Прочее","ds36.003","Госпитализация в дневной стационар в диагностических целях с постановкой диагноза туберкулеза, ВИЧ-инфекции, психического заболевания",0.46,3.536,null,1,"Таблица 3","Таблица 3","Таблица 4"]
[165,36,0,"Прочее","ds36.005","Отторжение, отмирание трансплантата органов и тканей",7.4,3.536,null,1,"Таблица 3","Таблица 3","Таблица 4"]
[166,36,0,"Прочее","ds36.006","Злокачественное новообразование без специального противоопухолевого лечения",0.4,3.536,null,1,"Таблица 3","Таблица 3","Таблица 4"]
[167,36,0,"Прочее","ds36.012","Проведение иммунизации против респираторно-синцитиальной вирусной инфекции (уровень 1)",2.5,3.536,1.09E-2,1,"Таблица 3","Таблица 3","Таблица 4"]
[168,36,0,"Прочее","ds36.013","Проведение иммунизации против респираторно-синцитиальной вирусной инфекции (уровень 2)",5.36,3.536,5.1000000000000004E-3,1,"Таблица 3","Таблица 3","Таблица 4"]
[169,36,0,"Прочее","ds36.014","Лечение с применением генно-инженерных биологических препаратов и селективных иммунодепрессантов (инициация)",4.0999999999999996,3.536,0.13,1,"Таблица 3","Таблица 3","Таблица 4"]
[170,36,0,"Прочее","ds36.015","Лечение с применением генно-инженерных биологических препаратов и селективных иммунодепрессантов (уровень 1)",0.17,3.536,0.19189999999999999,1,"Таблица 3","Таблица 3","Таблица 4"]
[171,36,0,"Прочее","ds36.016","Лечение с применением генно-инженерных биологических препаратов и селективных иммунодепрессантов (уровень 2)",0.35,3.536,9.4700000000000006E-2,1,"Таблица 3","Таблица 3","Таблица 4"]
[172,36,0,"Прочее","ds36.017","Лечение с применением генно-инженерных биологических препаратов и селективных иммунодепрессантов (уровень 3)",0.61,3.536,5.4199999999999998E-2,1,"Таблица 3","Таблица 3","Таблица 4"]
[173,36,0,"Прочее","ds36.018","Лечение с применением генно-инженерных биологических препаратов и селективных иммунодепрессантов (уровень 4)",0.81,3.536,4.0500000000000001E-2,1,"Таблица 3","Таблица 3","Таблица 4"]
[174,36,0,"Прочее","ds36.019","Лечение с применением генно-инженерных биологических препаратов и селективных иммунодепрессантов (уровень 5)",1.1399999999999999,3.536,2.8799999999999999E-2,1,"Таблица 3","Таблица 3","Таблица 4"]
[175,36,0,"Прочее","ds36.020","Лечение с применением генно-инженерных биологических препаратов и селективных иммунодепрессантов (уровень 6)",1.44,3.536,2.29E-2,1,"Таблица 3","Таблица 3","Таблица 4"]
[176,36,0,"Прочее","ds36.021","Лечение с применением генно-инженерных биологических препаратов и селективных иммунодепрессантов (уровень 7)",1.8,3.536,1.83E-2,1,"Таблица 3","Таблица 3","Таблица 4"]
[177,36,0,"Прочее","ds36.022","Лечение с применением генно-инженерных биологических препаратов и селективных иммунодепрессантов (уровень 8)",2.4300000000000002,3.536,8.5099999999999995E-2,1,"Таблица 3","Таблица 3","Таблица 4"]
[178,36,0,"Прочее","ds36.023","Лечение с применением генно-инженерных биологических препаратов и селективных иммунодепрессантов (уровень 9)",2.78,3.536,1.1900000000000001E-2,1,"Таблица 3","Таблица 3","Таблица 4"]
[179,36,0,"Прочее","ds36.024","Лечение с применением генно-инженерных биологических препаратов и селективных иммунодепрессантов (уровень 10)",3.37,3.536,9.7999999999999997E-3,1,"Таблица 3","Таблица 3","Таблица 4"]
[180,36,0,"Прочее","ds36.025","Лечение с применением генно-инженерных биологических препаратов и селективных иммунодепрессантов (уровень 11)",4.08,3.536,9.3200000000000005E-2,1,"Таблица 3","Таблица 3","Таблица 4"]
[181,36,0,"Прочее","ds36.026","Лечение с применением генно-инженерных биологических препаратов и селективных иммунодепрессантов (уровень 12)",5.22,3.536,6.3E-3,1,"Таблица 3","Таблица 3","Таблица 4"]
[182,36,0,"Прочее","ds36.027","Лечение с применением генно-инженерных биологических препаратов и селективных иммунодепрессантов (уровень 13)",7.13,3.536,6.2E-2,1,"Таблица 3","Таблица 3","Таблица 4"]
[183,36,0,"Прочее","ds36.028","Лечение с применением генно-инженерных биологических препаратов и селективных иммунодепрессантов (уровень 14)",9.1300000000000008,3.536,2.1100000000000001E-2,1,"Таблица 3","Таблица 3","Таблица 4"]
[184,36,0,"Прочее","ds36.029","Лечение с применением генно-инженерных биологических препаратов и селективных иммунодепрессантов (уровень 15)",11.32,3.536,2.8999999999999998E-3,1,"Таблица 3","Таблица 3","Таблица 4"]
[185,36,0,"Прочее","ds36.030","Лечение с применением генно-инженерных биологических препаратов и селективных иммунодепрессантов (уровень 16)",17.170000000000002,3.536,1.9E-3,1,"Таблица 3","Таблица 3","Таблица 4"]
[186,36,0,"Прочее","ds36.031","Лечение с применением генно-инженерных биологических препаратов и селективных иммунодепрессантов (уровень 17)",35.58,3.536,8.9999999999999998E-4,1,"Таблица 3","Таблица 3","Таблица 4"]
[187,36,0,"Прочее","ds36.032","Лечение с применением генно-инженерных биологических препаратов и селективных иммунодепрессантов (уровень 18)",38.89,3.536,8.0000000000000004E-4,1,"Таблица 3","Таблица 3","Таблица 4"]
[188,36,0,"Прочее","ds36.033","Лечение с применением генно-инженерных биологических препаратов и селективных иммунодепрессантов (уровень 19)",73.34,3.536,4.0000000000000002E-4,1,"Таблица 3","Таблица 3","Таблица 4"]
[189,36,0,"Прочее","ds36.034","Лечение с применением генно-инженерных биологических препаратов и селективных иммунодепрессантов (уровень 20)",150.29,3.536,2.0000000000000001E-4,1,"Таблица 3","Таблица 3","Таблица 4"]
[190,36,0,"Прочее","ds36.035","Лечение с применением методов афереза (каскадная плазмофильтрация, липидная фильтрация, иммуносорбция) в случае отсутствия эффективности базисной терапии",5.07,3.536,null,1,"Таблица 3","Таблица 3","Таблица 4"]
[191,37,"158","Медицинская реабилитация","ds37.001","Медицинская реабилитация пациентов с заболеваниями центральной нервной системы (2 балла по ШРМ)",1.98,3.536,null,1.1619999999999999,"Таблица 3","Таблица 3","Таблица 4"]
[192,37,"158","Медицинская реабилитация","ds37.002","Медицинская реабилитация пациентов с заболеваниями центральной нервной системы (3 балла по ШРМ)",2.31,3.536,null,1.1619999999999999,"Таблица 3","Таблица 3","Таблица 4"]
[193,37,"158","Медицинская реабилитация","ds37.003","Медицинская реабилитация пациентов с заболеваниями опорно-двигательного аппарата и периферической нервной системы (2 балла по ШРМ)",1.52,3.536,null,1.1619999999999999,"Таблица 3","Таблица 3","Таблица 4"]
[194,37,"158","Медицинская реабилитация","ds37.004","Медицинская реабилитация пациентов с заболеваниями опорно-двигательного аппарата и периферической нервной системы (3 балла по ШРМ)",1.82,3.536,null,1.1619999999999999,"Таблица 3","Таблица 3","Таблица 4"]
[195,37,"158","Медицинская реабилитация","ds37.005","Медицинская кардиореабилитация (2 балла по ШРМ)",1.39,3.536,null,1.1619999999999999,"Таблица 3","Таблица 3","Таблица 4"]
[196,37,"158","Медицинская реабилитация","ds37.006","Медицинская кардиореабилитация (3 балла по ШРМ)",1.67,3.536,null,1.1619999999999999,"Таблица 3","Таблица 3","Таблица 4"]
[197,37,"158","Медицинская реабилитация","ds37.007","Медицинская реабилитация при других соматических заболеваниях (2 балла по ШРМ)",0.85,3.536,null,1.1619999999999999,"Таблица 3","Таблица 3","Таблица 4"]
[198,37,"158","Медицинская реабилитация","ds37.008","Медицинская реабилитация при других соматических заболеваниях (3 балла по ШРМ)",1.0900000000000001,3.536,null,1.1619999999999999,"Таблица 3","Таблица 3","Таблица 4"]
[199,37,"158","Медицинская реабилитация","ds37.009","Медицинская реабилитация детей, перенесших заболевания перинатального периода",1.5,3.536,null,1.1619999999999999,"Таблица 3","Таблица 3","Таблица 4"]
[200,37,"158","Медицинская реабилитация","ds37.010","Медицинская реабилитация детей с нарушениями слуха без замены речевого процессора системы кохлеарной имплантации",1.8,3.536,null,1.1619999999999999,"Таблица 3","Таблица 3","Таблица 4"]
[201,37,"158","Медицинская реабилитация","ds37.011","Медицинская реабилитация детей с поражениями центральной нервной системы",2.75,3.536,null,1.1619999999999999,"Таблица 3","Таблица 3","Таблица 4"]
[202,37,"158","Медицинская реабилитация","ds37.012","Медицинская реабилитация детей после хирургической коррекции врожденных пороков развития органов и систем",2.35,3.536,null,1.1619999999999999,"Таблица 3","Таблица 3","Таблица 4"]
[203,37,"158","Медицинская реабилитация","ds37.013","Медицинская реабилитация после онкоортопедических операций",1.76,3.536,null,1.1619999999999999,"Таблица 3","Таблица 3","Таблица 4"]
[204,37,"158","Медицинская реабилитация","ds37.014","Медицинская реабилитация по поводу постмастэктомического синдрома в онкологии",1.51,3.536,null,1.1619999999999999,"Таблица 3","Таблица 3","Таблица 4"]
[205,37,"158","Медицинская реабилитация","ds37.015","Медицинская реабилитация после перенесенной коронавирусной инфекции COVID-19 (2 балла по ШРМ)",1,3.536,null,1.1619999999999999,"Таблица 3","Таблица 3","Таблица 4"]
[206,37,"158","Медицинская реабилитация","ds37.016","Медицинская реабилитация после перенесенной коронавирусной инфекции COVID-19 (3 балла по ШРМ)",1.4,3.536,null,1.1619999999999999,"Таблица 3","Таблица 3","Таблица 4"]
["<*> Оплата по КСГ осуществляется в случае назначения лекарственного препарата по решению врачебной комиссии."]
[]
["Стоимость одного случая госпитализации в стационаре (ССксг) по КСГ (за исключением КСГ, в составе которых Программой установлены доли заработной платы и прочих расходов) определяется по следующей формуле:"]
[null,"  ССксг=БС*КД*КЗксг*КСксг*КУСмо+БС*КД*КСЛП"]
[]
["<**>Стоимость одного случая госпитализации по КСГ, в составе которых Программой установлена доля заработной платы и прочих расходов, определяется по следующей формуле:"]
[null,"ССксг=БС х КЗксг х ((1-Дзп) + Дзп х КСксг х КУСмо х КД) + БС х КД<***> х КСЛП;"]
[]
[" <***> КД не применяется для КСЛП «проведение сопроводительной лекарственной терапии при злокачественных новообразованиях у взрослых в соответствии с клиническими рекомендациями» (равно единице)"]

{"sheet":"Таблица 3_k уровня-подуровн","index":2,"n_rows":20,"n_cols":10,"rows_kept":20,"cut":false,"hidden":false,"merged":[[19,0,19,9],[6,0,6,9],[8,0,9,0],[8,1,9,1],[8,2,8,5],[8,6,8,9]]}
[{"$nulls":9},{"$f":"'Таблица 1_КСГ по КС '!M1","v":"Приложение № 8"}]
[{"$nulls":9},{"$f":"'Таблица 1_КСГ по КС '!M2","v":"к Дополнительному соглашению № 4"}]
[{"$nulls":9},{"$f":"'Таблица 1_КСГ по КС '!M3","v":" от \"19\" июля 2023 года"}]
[{"$nulls":9},{"$f":"'Таблица 1_КСГ по КС '!M4","v":0}]
[]
[{"$nulls":9},"Таблица 3"]
["Значения коэффициента уровня/подуровня в разрезе медицинских организаций, участвующих в территориальной программе ОМС                                                                                                                     "]
[]
["N п/п","Наименование медицинской организации","Стационарная медицинская помощь",null,null,null,"Медицинская помощь, оказываемая в условиях дневного стационара"]
[null,null,"Уровень ","Коэффициент уровня оказания стационарной медицинской помощи   (КУСкпг/ксг)*          ","Подуровень","Коэффициент подуровня оказания стационарной медицинской помощи   для организаций i уровня (КУСкпгi/ксгi)* ","Уровень ","Коэффициент уровня оказания  медицинской помощи в условиях дневного стационара   (КУСкпг/ксг)*          ","Подуровень","Коэффициент подуровня оказания медицинской помощи в условиях дневного стационара  для организаций i уровня (КУСкпгi/ксгi)* "]
[1,2,3,4,5,6,7,8,9,10]
[1,"ГБУЗ \"Магаданская областная больница\", в том числе профили медицинской помощи:","х","х","х","х","х","х","х","х"]
["1.1.","Кардиология",3,1.25,"х","х",3,1.25,"х","х"]
["1.2.","Сердечно-сосудистая хирургия",3,1.25,"х","х",3,1.25,"х","х"]
["1.3.","Травматология и ортопедия",3,1.25,"х","х",3,1.25,"х","х"]
["1.4.","Профили КПГ/КСГ за исключением указанных в пунктах 1.1-1.3",2,1.05,"х","х",2,1.05,"х","х"]
[2,"МОГБУЗ \"Городская поликлиника\"","х","х","х","х",1,0.9,"х","х"]
[3," ГБУЗ \"Магаданский областной центр охраны материнства и детства\"",2,1.05,"х","х",2,1.05,"х","х"]
[4,"ООО \"Дантист XXI век\"","х","х","х","х",1,0.9,"х","х"]
["*В случае выделения подуровней оказания медицинской помощи соответствующие коэффициенты используются в расчетах вместо средних значений коэффициентов уровня оказания медицинской помощи (КУСМО)"]

{"sheet":"Таблица 4_КСЛП","index":3,"n_rows":43,"n_cols":4,"rows_kept":43,"cut":false,"hidden":false,"merged":[[6,0,6,3],[14,3,18,3],[27,0,27,3],[26,0,26,3],[22,0,23,0],[22,1,23,1],[22,2,23,2],[29,0,29,3],[30,2,30,3],[31,2,31,3],[25,0,25,3],[28,0,28,3],[32,2,32,3],[33,2,33,3],[34,2,34,3],[35,2,35,3],[30,0,30,1],[31,0,31,1],[32,0,32,1],[34,0,34,1],[33,0,33,1],[35,0,35,1],[39,0,39,1],[39,2,39,3],[36,0,36,1],[36,2,36,3],[37,0,37,1],[37,2,37,3],[38,0,38,1],[38,2,38,3],[40,0,40,1],[40,2,40,3],[41,0,41,1],[41,2,41,3],[42,0,42,1],[42,2,42,3]]}
[null,null,null,{"$f":"'Таблица 1_КСГ по КС '!M1","v":"Приложение № 8"}]
[null,null,null,{"$f":"'Таблица 1_КСГ по КС '!M2","v":"к Дополнительному соглашению № 4"}]
[null,null,null,{"$f":"'Таблица 1_КСГ по КС '!M3","v":" от \"19\" июля 2023 года"}]
[null,null,null,{"$f":"'Таблица 1_КСГ по КС '!M4","v":0}]
[]
[null,null,null,"Таблица 4"]
["Значения коэффициентов сложности лечения пациента (КСЛП), применяемых при оплате стационарной медицинской помощи в 2023 году "]
[]
["N (IDSL)","Случаи, для которых установлен КСЛП (USLKOEF)","Пороговые значения КСЛП* (ZKOEF)","Примечание"]
[1,"предоставление спального места и питания законному представителю несовершеннолетних (дети до 4 лет, дети старше 4 лет при наличии медицинских показаний), за исключением случаев, к которым применяется КСЛП, предусмотренный пунктом 2 настоящего перечня",0.2]
[2,"предоставление спального места и питания законному представителю несовершеннолетних (детей до 4 лет, детей старше 4 лет при наличии медицинских показаний), получающих медицинскую помощь по профилю «Детская онкология» и (или) «Гематология»",0.6]
[3,"оказание медицинской помощи пациенту в возрасте старше 75 лет в случае проведения консультации врача-гериатра и за исключением случаев госпитализации на геронтологические профильные койки",0.2,"за исключением случаев госпитализации на геронтологические профильные койки"]
[4,"развертывание индивидуального поста",0.2]
[5,"наличие у пациента тяжелой сопутствующей патологии, требующей оказания медицинской помощи в период госпитализации",0.6,"наличие у пациента дополнительного диагноза (диагноза осложнения заболевания) из перечня, определенного в таблице 4.2 настоящего Приложения, медицинская помощь в соответствии с которой оказывалась пациенту в период госпитализации"]
[6,"проведение сочетанных хирургических вмешательств или проведение однотипных операций на парных органах  (уровень 1)",0.05,"перечень возможных операций, а также критерии отнесения соответствующих операций к уровню КСЛП определен таблицах 4.3 - 4.4 настоящего Приложения"]
[7,"проведение сочетанных хирургических вмешательств или проведение однотипных операций на парных органах  (уровень 2)",0.47]
[8,"проведение сочетанных хирургических вмешательств или проведение однотипных операций на парных органах  (уровень 3)",1.1599999999999999]
[9,"проведение сочетанных хирургических вмешательств или проведение однотипных операций на парных органах  (уровень 4)",2.0699999999999998]
[10,"проведение сочетанных хирургических вмешательств или проведение однотипных операций на парных органах  (уровень 5)",3.49]
[11,"проведение 1 этапа медицинской реабилитации пациентов",0.15,"при проведении реабилитационных мероприятий при нахождении пациента на реанимационной койке и/или койке интенсивной терапии, начавшихся не позднее 48 часов от поступления в отделение реанимации или на койку интенсивной терапии с общей длительностью реабилитационных мероприятий не менее 5-ти суток, включая период после перевода на профильные койки по окончании реанимационных мероприятий, при обязательной продолжительности реабилитационных мероприятий не менее одного часа в сутки (при условии организации отделения ранней медицинской реабилитации на не менее чем 12 коек отделения, оказывающего медицинскую помощь по профилю «анестезиология и реанимация», и его укомплектования в соответствии с порядком оказания медицинской помощи по медицинской реабилитации)"]
[12,"проведение сопроводительной лекарственной терапии при злокачественных новообразованиях у взрослых в стационарных условиях в соответствии с клиническими рекомендациями**",0.63,"перечень схем сопроводительной лекарственной терапии при применении которых может быть применен КСЛП определен в таблице 4.1 настоящего Приложения"]
[13,"проведение сопроводительной лекарственной терапии при злокачественных новообразованиях у взрослых в условиях дневного стационара в соответствии с клиническими рекомендациями**",1.2,"перечень схем сопроводительной лекарственной терапии при применении которых может быть применен КСЛП определен в таблице 4.1 настоящего Приложения"]
[14,"проведение тестирования на выявление респираторных вирусных заболеваний (грипп, COVID-19) в период госпитализации",0.05,"Указанный КСЛП не может применяться при оплате случаев лечения, оплачиваемых по КСГ st12.012 «Грипп, вирус гриппа идентифицирован» и КСГst12.015-st12.019, используемых для оплаты случаев лечения новой коронавирусной инфекции COVID-19."]
[null,null,null,"Обязательным критерием для применения указанного КСЛП является проставление в реестрах методов идентификации респираторных вирусных заболеваний (грипп, COVID-19), закодированных как услуги***"]
[]
["* – при расчёте тарифа на оплату медицинской помощи значения коэффициента сложности лечения пациента применяются к размеру базовой ставки, скорректированному с учётом коэффициента дифференциации по территориям оказания медицинской помощи"]
[]
["** – стоимость КСЛП «проведение сопроводительной лекарственной терапии при злокачественных новообразованиях у взрослых в соответствии с клиническими рекомендациями» в стационарных условиях и в условиях дневного стационара определяется без учета коэффициента дифференциации субъекта Российской Федерации."]
[]
["*** – Коды услуг, применяемых при идентификации респираторных вирусных заболеваний (грипп, COVID-19)  в целях применения КСЛП (проведение тестирования на выявление респираторных вирусных заболеваний (грипп, COVID-19) в период госпитализации):"]
["A26.08.019.001",null,"Определение РНК вируса гриппа A (Influenza virus A) в мазках со слизистой оболочки носоглотки методом ПЦР"]
["A26.08.019.002",null,"Определение РНК вируса гриппа B (Influenza virus B) в мазках со слизистой оболочки носоглотки методом ПЦР"]
["A26.08.019.003",null,"Определение РНК вируса гриппа C (Influenza virus C) в мазках со слизистой оболочки носоглотки методом ПЦР"]
["A26.08.038.001",null,"Определение РНК вируса гриппа A (Influenza virus A) в мазках со слизистой оболочки ротоглотки методом ПЦР"]
["A26.08.038.002",null,"Определение РНК вируса гриппа B (Influenza virus B) в мазках со слизистой оболочки ротоглотки методом ПЦР"]
["A26.08.038.003",null,"Определение РНК вируса гриппа C (Influenza virus C) в мазках со слизистой оболочки ротоглотки методом ПЦР"]
["A26.08.027.001",null,"Определение PHK коронавируса ТОРС (SARS-cov) в мазках со слизистой оболочки носоглотки методом ПЦР"]
["A26.08.046.001",null,"Определение PHK коронавируса ТОРС (SARS-cov) в мазках со слизистой оболочки ротоглотки методом ПЦР"]
["A26.09.044.001",null,"Определение PHK коронавируса ТОРС (SARS-cov) в мокроте (индукцированной мокроте, фаринго-трахеальных аспиратах) методом ПЦР"]
["A26.09.060.001",null,"Определение PHK коронавируса ТОРС (SARS-cov) в бронхоальвеолярной лаважной жидкости методом ПЦР"]
["B03.014.100.001",null,"Комплексная диагностика вирусов респираторных инфекций (ОРИ) "]
["A26.08.019.101",null,"Диагностика вирусов респираторных инфекций типирование гриппа А (Influenza virusA) "]
["A26.08.019.100",null,"Диагностика вирусов респираторных инфекций Определение РНК вируса гриппа A/H1N1 pdm09 (свиной грипп)"]

{"sheet":"Таблица 4.1","index":4,"n_rows":20,"n_cols":4,"rows_kept":20,"cut":false,"hidden":false,"merged":[[17,2,17,3],[18,2,18,3],[19,2,19,3],[11,2,11,3],[12,2,12,3],[13,2,13,3],[14,2,14,3],[15,2,15,3],[16,2,16,3],[9,2,9,3],[10,2,10,3],[5,0,5,3],[4,0,4,3],[2,0,2,3],[7,2,7,3],[8,2,8,3]]}
[null,null,null,"Таблица 4.1."]
[]
["4.1. Перечень схем сопроводительной лекарственной терапии, при применении которых может быть применен КСЛП "]
[]
["       КСЛП в случае проведения сопроводительной лекарственной терапии при злокачественных новообразованиях у взрослых может быть применен в случае, если проведение сопроводительной терапии предусмотрено соответствующими клиническими рекомендациями, в рамках госпитализаций в стационарных условиях по КСГ st19.084-st19.089, st19.094-st19.102, st19.125-st19.143; в условиях дневного стационара по КСГ ds19.058-ds19.062, ds19.067-ds19.078, ds19.097-ds19.115."]
["       Перечень схем сопроводительной лекарственной терапии, при применении которых может быть применен КСЛП:"]
[]
["Код схемы","Описание схемы","Условия применения"]
["supt01","Филграстим 4 дня введения по 300 мкг"]
["supt02","Деносумаб 1 день введения 120 мг","N18.3, N18.4, N18.5 «Хроническая болезнь почки, стадия 3-5» (при клиренсе креатинина <59 мл/мин"]
["supt03","Тоцилизумаб 1 день введения 4 мг/кг"]
["supt04","Филграстим 8 дней введения по 300 мкг"]
["supt05","Эмпэгфилграстим 1 день введения 7,5 мг"]
["supt06","Филграстим 10 дней введения по 300 мкг"]
["supt07","Микофенолата мофетил 30 дней введения по 500 мг 2 раза в день"]
["supt08","Такролимус 30 дней введения по 0,1 мг/кг"]
["supt09","Ведолизумаб 1 день введения 300 мг"]
["supt10","Инфликсимаб 1 день введения 800 мг"]
["supt11","Иммуноглобулин человека нормальный 2 дня введения по 1000 мг/кг"]
["supt12","Иммуноглобулин антитимоцитарный 8-14 дней введения 10-20 мг/кг"]

{"sheet":"Таблица 4.2","index":5,"n_rows":14,"n_cols":3,"rows_kept":14,"cut":false,"hidden":false,"merged":[[9,1,9,2],[10,1,10,2],[11,1,11,2],[12,1,12,2],[13,1,13,2],[2,1,2,2],[4,1,4,2],[6,1,6,2],[7,1,7,2],[8,1,8,2]]}
[null,null,"Таблица 4.2"]
[]
[null,"Перечень тяжелой сопутствующей патологии, осложнений заболеваний, влияющих на сложность лечения пациента "]
[]
[null,"К таким сопутствующим заболеваниям и осложнениям заболеваний целесообразно относить:"]
[]
[1,"Сахарный диабет типа 1 и 2;"]
[2,"Заболевания, включенные в Перечень редких (орфанных) заболеваний, размещенный на официальном сайте Министерства здравоохранения Российской Федерации"]
[3,"Рассеянный склероз (G35);"]
[4,"Хронический лимфоцитарный лейкоз (С91.1);"]
[5,"Состояния после трансплантации органов и (или) тканей (Z94.0; Z94.1; Z94.4; Z94.8);"]
[6," Детский церебральный паралич (G80);"]
[7,"ВИЧ/СПИД, стадии 4Б и 4В, взрослые (B20 – B24);"]
[8,"Перинатальный контакт по ВИЧ-инфекции, дети (Z20.6)."]

{"sheet":"Таблица 4.3","index":6,"n_rows":147,"n_cols":4,"rows_kept":147,"cut":false,"hidden":false,"merged":[[2,0,2,3],[117,0,117,3],[125,0,125,3],[4,0,4,3],[7,0,7,3],[6,0,6,1],[6,2,6,3],[32,0,32,3]]}
[null,null,null,"Таблица 4.3."]
[]
["Перечень сочетанных (симультанных) хирургических вмешательств, выполняемых во время одной госпитализации"]
[]
["Перечень сочетанных (симультанных) хирургических вмешательств, выполняемых во время одной госпитализации, представлен в таблицах:"]
[]
["Операция 1",null,"Операция 2"]
["Уровень 1"]
["A16.01.031","Устранение рубцовой деформации","A16.01.017.001","Удаление доброкачественных новообразований кожи методом электрокоагуляции"]
["A16.01.031","Устранение рубцовой деформации","A16.01.017","Удаление доброкачественных новообразований кожи"]
["A16.01.013","Удаление сосудистой мальформации","A16.01.017","Удаление доброкачественных новообразований кожи"]
["A16.01.013","Удаление сосудистой мальформации","A16.01.017.001","Удаление доброкачественных новообразований кожи методом электрокоагуляции"]
["A16.18.027","Эндоскопическое электрохирургическое удаление новообразования толстой кишки","A16.19.017","Удаление полипа анального канала и прямой кишки"]
["A16.18.027","Эндоскопическое электрохирургическое удаление новообразования толстой кишки","A16.19.003.001","Иссечение анальной трещины"]
["A16.26.093","Факоэмульсификация без интраокулярной линзы. Факофрагментация, факоаспирация","A16.26.073.003","Проникающая склерэктомия"]
["A16.26.093.002","Факоэмульсификация с имплантацией интраокулярной линзы","A16.26.070","Модифицированная синустрабекулэктомия"]
["A16.26.093.001","Факоэмульсификация с использованием фемтосекундного лазера","A16.26.070","Модифицированная синустрабекулэктомия"]
["A16.26.049.008","Сквозная кератопластика","A16.26.092","Экстракапсулярная экстракция катаракты с имплантацией ИОЛ"]
["A16.07.061.001","Хейлоринопластика (устранение врожденной расщелины верхней губы)","A16.07.042","Пластика уздечки верхней губы"]
["A16.07.061.001","Хейлоринопластика (устранение врожденной расщелины верхней губы)","A16.07.044","Пластика уздечки языка"]
["A16.07.066","Уранопластика (устранение врожденной расщелины твердого и мягкого неба)","A16.07.042","Пластика уздечки верхней губы"]
["A16.07.066","Уранопластика (устранение врожденной расщелины твердого и мягкого неба)","A16.07.044","Пластика уздечки языка"]
["A16.30.014","Экстирпация срединных кист и свищей шеи","A16.01.018","Удаление доброкачественных новообразований подкожно-жировой клетчатки"]
["A16.30.014","Экстирпация срединных кист и свищей шеи","A16.01.017","Удаление доброкачественных новообразований кожи"]
["A16.30.015","Экстирпация боковых свищей шеи","A16.01.018","Удаление доброкачественных новообразований подкожно-жировой клетчатки"]
["A16.30.015","Экстирпация боковых свищей шеи","A16.01.017","Удаление доброкачественных новообразований кожи"]
["A16.07.016","Цистотомия или цистэктомия","A16.01.018","Удаление доброкачественных новообразований подкожно-жировой клетчатки"]
["A16.01.031","Устранение рубцовой деформации","A16.01.018","Удаление доброкачественных новообразований подкожно-жировой клетчатки"]
["A16.01.013","Удаление сосудистой мальформации","A16.01.018","Удаление доброкачественных новообразований подкожно-жировой клетчатки"]
["A16.26.106","Удаление инородного тела, новообразования из глазницы","A16.26.111","Пластика века (блефаропластика) без и с пересадкой тканей"]
["A16.07.016","Цистотомия или цистэктомия","A16.07.042","Пластика уздечки верхней губы"]
["A16.07.016","Цистотомия или цистэктомия","A16.07.043","Пластика уздечки нижней губы"]
["Уровень 2"]
["A16.12.009","Тромбэндартерэктомия","A06.12.015","Ангиография бедренной артерии прямая, обеих сторон"]
["A16.12.009.001","Тромбоэктомия из сосудистого протеза","A06.12.015","Ангиография бедренной артерии прямая, обеих сторон"]
["A16.12.038.006","Бедренно - подколенное шунтирование","A06.12.015","Ангиография бедренной артерии прямая, обеих сторон"]
["A16.12.008.001","Эндартерэктомия каротидная","A06.12.005","Ангиография внутренней сонной артерии"]
["A16.12.038.008","Сонно-подключичное шунтирование","A06.12.007","Ангиография артерий верхней конечности прямая"]
["A16.12.006.001","Удаление поверхностных вен нижней конечности","A16.30.001","Оперативное лечение пахово-бедренной грыжи"]
["A16.12.006.001","Удаление поверхностных вен нижней конечности","A16.30.001.001","Оперативное лечение пахово-бедренной грыжи с использованием видеоэндоскопических технологий"]
["A16.12.006.001","Удаление поверхностных вен нижней конечности","A16.30.001.002","Оперативное лечение пахово-бедренной грыжи с использованием сетчатых имплантов"]
["A16.14.009","Холецистэктомия","A16.30.002","Оперативное лечение пупочной грыжи"]
["A16.14.009","Холецистэктомия","A16.30.003","Оперативное лечение околопупочной грыжи"]
["A16.14.009","Холецистэктомия","A16.30.004","Оперативное лечение грыжи передней брюшной стенки"]
["A16.14.009.002","Холецистэктомия лапароскопическая","A16.30.002","Оперативное лечение пупочной грыжи"]
["A16.14.009.002","Холецистэктомия лапароскопическая","A16.30.003","Оперативное лечение околопупочной грыжи"]
["A16.14.009.002","Холецистэктомия лапароскопическая","A16.30.004","Оперативное лечение грыжи передней брюшной стенки"]
["A16.14.009.001","Холецистэктомия малоинвазивная","A16.30.002","Оперативное лечение пупочной грыжи"]
["A16.14.009.001","Холецистэктомия малоинвазивная","A16.30.003","Оперативное лечение околопупочной грыжи"]
["A16.14.009.001","Холецистэктомия малоинвазивная","A16.30.004","Оперативное лечение грыжи передней брюшной стенки"]
["A16.09.026.004","Пластика диафрагмы с использованием видеоэндоскопических технологий","A16.16.006.001","Бужирование пищевода эндоскопическое"]
["A16.22.001","Гемитиреоидэктомия","A16.14.009.002","Холецистэктомия лапароскопическая"]
["A16.22.001","Гемитиреоидэктомия","A16.30.001","Оперативное лечение пахово-бедренной грыжи"]
["A16.22.001","Гемитиреоидэктомия","A16.30.001.001","Оперативное лечение пахово-бедренной грыжи с использованием видеоэндоскопических технологий"]
["A16.22.001","Гемитиреоидэктомия","A16.30.001.002","Оперативное лечение пахово-бедренной грыжи с использованием сетчатых имплантов"]
["A16.22.001","Гемитиреоидэктомия","A16.30.002","Оперативное лечение пупочной грыжи"]
["A16.22.001","Гемитиреоидэктомия","A16.30.002.001","Оперативное лечение пупочной грыжи с использованием видеоэндоскопических технологий"]
["A16.22.001","Гемитиреоидэктомия","A16.30.004","Оперативное лечение грыжи передней брюшной стенки"]
["A16.20.032","Резекция молочной железы","A16.20.004","Сальпингэктомия лапаротомическая"]
["A16.20.032","Резекция молочной железы","A16.20.017","Удаление параовариальной кисты лапаротомическое"]
["A16.20.032","Резекция молочной железы","A16.20.061","Резекция яичника лапаротомическая"]
["A16.20.005","Кесарево сечение","A16.20.041","Стерилизация маточных труб лапаротомическая"]
["A16.20.005","Кесарево сечение","A16.20.075","Перевязка маточных артерий"]
["A16.20.063.001","Влагалищная экстирпация матки с придатками с использованием видеоэндоскопических технологий","A16.20.083","Кольпоперинеоррафия и леваторопластика"]
["A16.16.033.001","Фундопликация лапароскопическая","A16.14.009.002","Холецистэктомия лапароскопическая"]
["A16.18.027","Эндоскопическое электрохирургическое удаление новообразования толстой кишки","A16.19.013","Удаление геморроидальных узлов"]
["A16.28.071.001","Иссечение кисты почки лапароскопическое","A16.20.001.001","Удаление кисты яичника с использованием видеоэндоскопических технологий"]
["A16.21.002","Трансуретральная резекция простаты","A16.28.085","Трансуретральная эндоскопическая цистолитотрипсия"]
["A16.26.111.001","Пластика верхних век без пересадки тканей чрескожным доступом","A16.26.041.001","Пластика конъюнктивальной полости с использованием свободного лоскута слизистой со щеки"]
["A16.26.145","Пластика опорно­двигательной культи при анофтальме","A16.26.041.001","Пластика конъюнктивальной полости с использованием свободного лоскута слизистой со щеки"]
["A16.19.013","Удаление геморроидальных узлов","A16.19.003.001","Иссечение анальной трещины"]
["A16.26.093","Факоэмульсификация без интраокулярной линзы. Факофрагментация, факоаспирация ","A16.26.069","Трабекулотомия"]
["A16.26.093","Факоэмульсификация без интраокулярной линзы. Факофрагментация, факоаспирация","A16.26.146","Реконструкция угла передней камеры глаза"]
["A16.30.004.011","Оперативное лечение грыжи передней брюшной стенки с использованием сетчатых имплантов","A16.30.001.002","Оперативное лечение пахово-бедренной грыжи с использованием сетчатых имплантов"]
["A16.30.004.011","Оперативное лечение грыжи передней брюшной стенки с использованием сетчатых имплантов","A16.30.001.001","Оперативное лечение пахово-бедренной грыжи с использованием видеоэндоскопических технологий"]
["A16.30.002.001","Оперативное лечение пупочной грыжи с использованием видеоэндоскопических технологий","A16.30.001.002","Оперативное лечение пахово-бедренной грыжи с использованием сетчатых имплантов"]
["A16.30.002.001","Оперативное лечение пупочной грыжи с использованием видеоэндоскопических технологий","A16.30.001.001","Оперативное лечение пахово-бедренной грыжи с использованием видеоэндоскопических технологий"]
["A16.30.002","Оперативное лечение пупочной грыжи","A16.30.001","Оперативное лечение пахово-бедренной грыжи"]
["A16.30.004","Оперативное лечение грыжи передней брюшной стенки","A16.30.001","Оперативное лечение пахово-бедренной грыжи"]
["A16.08.013.001","Пластика носовой перегородки с использованием видеоэндоскопических технологий","A16.08.017.001","Гайморотомия с использованием видеоэндоскопических технологий"]
["A16.26.093","Факоэмульсификация без интраокулярной линзы. Факофрагментация, факоаспирация","A16.26.115","Удаление силиконового масла (или иного высокомолекулярного соединения) из витреальной полости"]
["A16.26.099","Эвисцерация глазного яблока","A16.26.041.001","Пластика конъюнктивальной полости с использованием свободного лоскута слизистой со щеки"]
["A16.26.115","Удаление силиконового масла (или иного высокомолекулярного соединения) из витреальной полости","A16.26.094","Имплантация интраокулярной линзы"]
["A16.12.019.001","Ревизия бедренных артерий","A16.12.028","Установка стента в сосуд"]
["A16.12.019.001","Ревизия бедренных артерий","A16.12.026","Баллонная вазодилатация"]
["A16.12.019.001","Ревизия бедренных артерий","А16.12.026.018","Баллонная ангиопластика подвздошной артерии"]
["A16.14.009","Холецистэктомия","A16.30.002.001","Оперативное лечение пупочной грыжи с использованием видеоэндоскопических технологий"]
["A16.14.009","Холецистэктомия","A16.30.002.002","Оперативное лечение пупочной грыжи с использованием сетчатых имплантов"]
["A16.14.009","Холецистэктомия","A16.30.004.011","Оперативное лечение грыжи передней брюшной стенки с использованием сетчатых имплантов"]
["A16.14.009.002","Холецистэктомия лапароскопическая","A16.30.002.001","Оперативное лечение пупочной грыжи с использованием видеоэндоскопических технологий"]
["A16.14.009.002","Холецистэктомия лапароскопическая","A16.30.002.002","Оперативное лечение пупочной грыжи с использованием сетчатых имплантов"]
["A16.14.009.002","Холецистэктомия лапароскопическая","A16.30.004.011","Оперативное лечение грыжи передней брюшной стенки с использованием сетчатых имплантов"]
["A16.14.009.001","Холецистэктомия малоинвазивная","A16.30.002.001","Оперативное лечение пупочной грыжи с использованием видеоэндоскопических технологий"]
["A16.14.009.001","Холецистэктомия малоинвазивная","A16.30.002.002","Оперативное лечение пупочной грыжи с использованием сетчатых имплантов"]
["A16.14.009.001","Холецистэктомия малоинвазивная","A16.30.004.011","Оперативное лечение грыжи передней брюшной стенки с использованием сетчатых имплантов"]
["A16.30.003","Оперативное лечение околопупочной грыжи","A16.30.001.002","Оперативное лечение пахово-бедренной грыжи с использованием сетчатых имплантов"]
["A16.30.002","Оперативное лечение пупочной грыжи","A16.30.001.002","Оперативное лечение пахово-бедренной грыжи с использованием сетчатых имплантов"]
["A16.30.004","Оперативное лечение грыжи передней брюшной стенки","A16.30.001.002","Оперативное лечение пахово-бедренной грыжи с использованием сетчатых имплантов"]
["A16.30.002","Оперативное лечение пупочной грыжи","A16.16.033.001","Фундопликация лапароскопическая"]
["A16.30.002","Оперативное лечение пупочной грыжи","A16.09.026.004","Пластика диафрагмы с использованием видеоэндоскопических технологий"]
["A16.30.005.003","Устранение грыжи пищеводного отверстия диафрагмы с использованием видеоэндоскопических технологий","A16.16.046.002","Лапароскопическая диафрагмокрурорафия"]
["A16.30.005.003","Устранение грыжи пищеводного отверстия диафрагмы с использованием видеоэндоскопических технологий","A16.16.033.001","Фундопликация лапароскопическая"]
["A16.20.043","Мастэктомия","A16.20.011.002","Тотальная гистерэктомия (экстирпация матки) с придатками лапаротомическая"]
["A16.20.005","Кесарево сечение","A16.20.035","Миомэктомия (энуклеация миоматозных узлов) лапаротомическая"]
["A16.20.005","Кесарево сечение","A16.20.001","Удаление кисты яичника"]
["A16.20.005","Кесарево сечение","A16.20.061","Резекция яичника лапаротомическая"]
["A16.20.005","Кесарево сечение","A16.20.039","Метропластика лапаротомическая"]
["A16.20.083","Кольпоперинеоррафия и леваторопластика","A16.20.042.001","Слинговые операции при недержании мочи"]
["A16.14.009.002","Холецистэктомия лапароскопическая","A16.20.063.001","Влагалищная экстирпация матки с придатками с использованием видеоэндоскопических технологий"]
["A16.18.009.001","Аппендэктомия с использованием видеоэндоскопических технологий","A16.20.061.001","Резекция яичника с использованием видеоэндоскопических технологий"]
["A16.18.009","Аппендэктомия","A16.20.061","Резекция яичника лапаротомическая"]
["A16.28.054","Трансуретральная уретеролитоэкстракция","A16.28.003.001","Лапароскопическая резекция почки"]
["A16.26.093","Факоэмульсификация без интраокулярной линзы. Факофрагментация, факоаспирация","A16.26.049","Кератопластика (трансплантация роговицы)"]
["A16.26.093","Факоэмульсификация без интраокулярной линзы. Факофрагментация, факоаспирация","A16.26.087","Замещение стекловидного тела"]
["A16.26.098","Энуклеация глазного яблока","A16.26.041.001","Пластика конъюнктивальной полости с использованием свободного лоскута слизистой со щеки"]
["A16.26.115","Удаление силиконового масла (или иного высокомолекулярного соединения) из витреальной полости","A16.26.093.002","Факоэмульсификация с имплантацией интраокулярной линзы"]
["A16.26.094","Имплантация интраокулярной линзы","A16.26.086.001","Интравитреальное введение лекарственных препаратов"]
["Уровень 3"]
["A16.22.001","Гемитиреоидэктомия","A16.30.002.002","Оперативное лечение пупочной грыжи с использованием сетчатых имплантов"]
["A16.18.016","Гемиколэктомия правосторонняя","A16.14.030","Резекция печени атипичная"]
["A16.30.002.002","Оперативное лечение пупочной грыжи с использованием сетчатых имплантов","A16.30.001.002","Оперативное лечение пахово-бедренной грыжи с использованием сетчатых имплантов"]
["A16.30.002.002","Оперативное лечение пупочной грыжи с использованием сетчатых имплантов","A16.30.001.001","Оперативное лечение пахово-бедренной грыжи с использованием видеоэндоскопических технологий"]
["A16.26.093.002","Факоэмульсификация с имплантацией интраокулярной линзы","A16.26.049.005","Неавтоматизированная эндотекатопластика"]
["A16.26.049.004","Послойная кератопластика","A16.26.093.002","Факоэмульсификация с имплантацией интраокулярной линзы"]
["A16.26.089.002","Витреоэктомия задняя субтотальная закрытая","A16.26.093.002","Факоэмульсификация с имплантацией интраокулярной линзы"]
["Уровень 4"]
["A16.09.026.004","Пластика диафрагмы с использованием видеоэндоскопических технологий","A16.16.032.002","Эндоскопическая кардиодилятация пищевода баллонным кардиодилятатором"]
["A16.28.004.001","Лапароскопическая нефрэктомия","A16.21.002","Трансуретральная резекция простаты"]
["A16.26.089.002","Витреоэктомия задняя субтотальная закрытая","A16.26.094","Имплантация интраокулярной линзы"]
["A16.26.089.002","Витреоэктомия задняя субтотальная закрытая","A16.26.082","Круговое эпиклеральное пломбирование"]
["A16.12.011.008","Пластика глубокой бедренной артерии","A16.12.026","Баллонная вазодилатация"]
["A16.26.093.001","Факоэмульсификация с использованием фемтосекундного лазера","A16.26.049.005","Неавтоматизированная эндотекатопластика"]
["A16.26.093.001","Факоэмульсификация с использованием фемтосекундного лазера","A16.26.093.002","Факоэмульсификация с имплантацией интраокулярной линзы"]
["A16.30.005.003","Устранение грыжи пищеводного отверстия диафрагмы с использованием видеоэндоскопических технологий","A16.30.005.001","Пластика диафрагмы с использованием импланта"]
["A16.20.014","Влагалищная тотальная гистерэктомия (экстирпация матки) с придатками","A16.20.042.001","Слинговые операции при недержании мочи"]
["A16.20.063.001","Влагалищная экстирпация матки с придатками с использованием видеоэндоскопических технологий","A16.20.042.001","Слинговые операции при недержании мочи"]
["A16.26.049.004","Послойная кератопластика","A16.26.093.001","Факоэмульсификация с использованием фемтосекундного лазера"]
["A16.12.009.001","Тромбоэктомия из сосудистого протеза","А16.12.026.018","Баллонная ангиопластика подвздошной артерии"]
["A16.12.038.006","Бедренно - подколенное шунтирование","А16.12.026.018","Баллонная ангиопластика подвздошной артерии"]
["A16.12.009.001","Тромбоэктомия из сосудистого протеза","A16.12.028","Установка стента в сосуд"]
["A16.12.011.008","Пластика глубокой бедренной артерии","A16.12.028","Установка стента в сосуд"]
["A16.12.011.008","Пластика глубокой бедренной артерии","А16.12.026.018","Баллонная ангиопластика подвздошной артерии"]
["A16.12.009","Тромбэндартерэктомия","A16.12.028","Установка стента в сосуд"]
["A16.12.009","Тромбэндартерэктомия","А16.12.026.018","Баллонная ангиопластика подвздошной артерии"]
["A16.12.038.006","Бедренно - подколенное шунтирование","A16.12.026.002","Баллонная ангиопластика подколенной артерии и магистральных артерий голени"]
["A16.12.038.006","Бедренно - подколенное шунтирование","A16.12.026.004","Баллонная ангиопластика со стентированием подколенной артерии и магистральных артерий голени"]
["A16.26.089.002","Витреоэктомия задняя субтотальная закрытая","A16.26.093.001","Факоэмульсификация с использованием фемтосекундного лазера"]

{"sheet":"Таблица 4.4","index":7,"n_rows":60,"n_cols":4,"rows_kept":60,"cut":false,"hidden":false,"merged":[[59,1,59,3],[5,0,5,3],[54,1,54,3],[55,1,55,3],[56,0,56,3],[57,1,57,3],[58,1,58,3],[48,1,48,3],[49,1,49,3],[50,1,50,3],[51,1,51,3],[52,1,52,3],[53,1,53,3],[42,1,42,3],[43,1,43,3],[44,1,44,3],[45,1,45,3],[46,1,46,3],[47,1,47,3],[37,1,37,3],[38,1,38,3],[39,0,39,3],[40,1,40,3],[41,1,41,3],[32,1,32,3],[33,1,33,3],[34,1,34,3],[35,0,35,3],[36,1,36,3],[31,1,31,3],[21,1,21,3],[22,1,22,3],[23,1,23,3],[24,1,24,3],[25,0,25,3],[26,1,26,3],[27,1,27,3],[28,1,28,3],[29,1,29,3],[30,1,30,3],[2,0,2,3],[4,0,4,3],[8,0,8,3],[7,1,7,3],[20,1,20,3],[9,1,9,3],[10,1,10,3],[11,1,11,3],[12,1,12,3],[13,1,13,3],[14,1,14,3],[15,1,15,3],[16,1,16,3],[17,1,17,3],[18,1,18,3],[19,1,19,3]]}
[null,null,null,"Таблица 4.4."]
[]
["Перечень хирургических вмешательств, при проведении которых одновременно на двух парных органах может быть применен КСЛП"]
[]
["     К данным операциям относятся операции на парных органах/частях тела, при выполнении которых необходимы в том числе дорогостоящие расходные материалы. "]
["     Перечень хирургических вмешательств, при проведении которых одновременно на двух парных органах может быть применен КСЛП, представлен в таблицах:"]
[]
["Код услуги","Наименование"]
["Уровень 1"]
["A16.26.007","Пластика слезных точек и слезных канальцев"]
["A16.26.019","Устранение эпикантуса"]
["A16.26.020","Устранение энтропиона или эктропиона"]
["A16.26.021","Коррекция блефароптоза"]
["A16.26.021.001","Устранение птоза"]
["A16.26.022","Коррекция блефарохалязиса"]
["A16.26.023","Устранение блефароспазма"]
["A16.26.028","Миотомия, тенотомия глазной мышцы"]
["A22.26.004","Лазерная корепраксия, дисцизия задней капсулы хрусталика"]
["A22.26.005","Лазерная иридэктомия"]
["A22.26.006","Лазергониотрабекулопунктура"]
["A22.26.007","Лазерный трабекулоспазис"]
["A22.26.009","Фокальная лазерная коагуляция глазного дна"]
["A22.26.010","Панретинальная лазерная коагуляция "]
["A22.26.019","Лазерная гониодесцеметопунктура"]
["A22.26.023","Лазерная трабекулопластика"]
["Уровень 2"]
["A16.03.033.002","Наложение наружных фиксирующих устройств с использованием компрессионно-дистракционного аппарата внешней фиксации"]
["A16.12.006","Разрез, иссечение и закрытие вен нижней конечности"]
["A16.12.006.002","Подапоневротическая перевязка анастомозов между поверхностными и глубокими венами голени"]
["A16.12.012","Перевязка и обнажение варикозных вен"]
["A16.26.075","Склеропластика "]
["A16.26.075.001","Склеропластика с использованием трансплантатов "]
["A16.26.079","Реваскуляризация заднего сегмента глаза"]
["A16.26.094","Имплантация интраокулярной линзы"]
["A16.26.147","Ретросклеропломбирование"]
["Уровень 3"]
["A16.12.006.001","Удаление поверхностных вен нижней конечности"]
["A16.12.006.003","Диссекция перфорантных вен с использованием видеоэндоскопических технологий"]
["A16.26.093.002","Факоэмульсификация с имплантацией интраокулярной линзы"]
["Уровень 4"]
["A16.03.022.002","Остеосинтез титановой пластиной "]
["A16.03.022.004","Интрамедуллярный стержневой остеосинтез"]
["A16.03.022.005","Остеосинтез с использованием биодеградируемых материалов "]
["A16.03.022.006","Интрамедуллярный блокируемый остеосинтез"]
["A16.03.024.005","Реконструкция кости. Остеотомия кости с использованием комбинируемых методов фиксации "]
["A16.03.024.007","Реконструкция кости. Корригирующая остеотомия при деформации стоп"]
["A16.03.024.008","Реконструкция кости. Корригирующая остеотомия бедра"]
["A16.03.024.009","Реконструкция кости. Корригирующая остеотомия голени"]
["A16.03.024.010","Реконструкция кости при ложном суставе бедра"]
["A16.04.014","Артропластика стопы и пальцев ноги"]
["A16.12.008.001","Эндартерэктомия каротидная "]
["A16.12.008.002","Эндартерэктомия каротидная с пластикой"]
["A16.20.043.003","Мастэктомия радикальная с односторонней пластикой молочной железы с применением микрохирургической техники"]
["A16.20.043.004","Мастэктомия расширенная модифицированная с пластическим закрытием дефекта грудной стенки"]
["A16.20.047","Мастэктомия расширенная модифицированная с пластическим закрытием дефекта грудной стенки различными вариантами кожно-мышечных лоскутов"]
["A16.20.048","Мастэктомия радикальная с реконструкцией TRAM-лоскутом"]
["Уровень 5"]
["A16.20.032.007","Резекция молочной железы субтотальная с маммопластикой и эндопротезированием"]
["A16.20.103","Отсроченная реконструкция молочной железы с использованием эндопротеза"]
["A16.20.049.001","Мастэктомия радикальная по Маддену с реконструкцией кожно-мышечным лоскутом и эндопротезированием"]